Workbook

Sheet Dislcaimer
A1: Interest Rate Derivatives Explained II (Illustrations)
A2: Novel Methods in Computational Finance
A5: This sheet does only serve for illustration purposes! It illustrates pricing using SABR Approximation Formulas | K5: The code comes with BSD License
K6: 'Copyright 2017 Dr. Joerg Kienitz
A7: This illustration and any accompanying material are being provided solely for information and general illustrative
A8: purposes. The author will not be responsible for the consequences of reliance upon any information contained in or | K8: 'Redistribution and use in source and binary forms, with or without modification,
A9: derived from the presentation or for any omission of information therefrom and hereby excludes all liability for loss | K9: 'are permitted provided that the following conditions are met:
A10: or damage (including, without limitation, direct, indirect, foreseeable, or consequential loss or damage and
A11: including loss or profit and even if advised of the possibility of such damages or if such damages were foreseeable) | K11: '1. Redistributions of source code must retain the above copyright notice,
A12: that may be incurred or su ered by any person in connection with the presentation, including (without limitation) | K12: 'this list of conditions and the following disclaimer.
A13: for the consequences of reliance upon any results derived therefrom or any error or omission whether negligent or
A14: not. No representation or warranty is made or given by the author that the presentation or any content thereof will | K14: '2. Redistributions in binary form must reproduce the above copyright notice,
A15: be error free, updated, complete or that inaccuracies, errors or defects will be corrected. | K15: 'this list of conditions and the following disclaimer in the documentation
A16: The views are solely that of the author. | K16: 'and/or other materials provided with the distribution.
A17: The presentation may not be reproduced in whole or part or delivered to any other person without prior permission
A18: of the author. It is accompanying material for the book Interest Rate Derivatives Explained II! | K18: '3. Neither the name of the copyright holder nor the names of its contributors
K19: 'may be used to endorse or promote products derived from this software without
A20: For comments, hints, bugs or suggestions, please, | K20: 'specific prior written permission.
A21: Contact:
A22: joerg.kienitz@gmx.de | K22: 'THIS SOFTWARE IS PROVIDED BY THE COPYRIGHT HOLDERS AND CONTRIBUTORS
K23: '"AS IS" AND ANY EXPRESS OR IMPLIED WARRANTIES, INCLUDING, BUT NOT LIMITED TO,
K24: 'THE IMPLIED WARRANTIES OF MERCHANTABILITY AND FITNESS FOR A PARTICULAR PURPOSE
K25: 'ARE DISCLAIMED. IN NO EVENT SHALL THE COPYRIGHT HOLDER OR CONTRIBUTORS BE LIABLE
K26: 'FOR ANY DIRECT, INDIRECT, INCIDENTAL, SPECIAL, EXEMPLARY, OR CONSEQUENTIAL DAMAGES
K27: '(INCLUDING, BUT NOT LIMITED TO, PROCUREMENT OF SUBSTITUTE GOODS OR SERVICES;
K28: 'LOSS OF USE, DATA, OR PROFITS; OR BUSINESS INTERRUPTION) HOWEVER CAUSED AND ON
K29: 'ANY THEORY OF LIABILITY, WHETHER IN CONTRACT, STRICT LIABILITY,
K30: 'OR TORT (INCLUDING NEGLIGENCE OR OTHERWISE) ARISING IN ANY WAY OUT OF THE USE OF
K31: 'THIS SOFTWARE, EVEN IF ADVISED OF THE POSSIBILITY OF SUCH DAMAGE.

Sheet SABR Smile Designer
A1: SABR Smile Designer
A3: Market | B3: EUR
A4: SwapRate | B4: 0.032 | D4: StrikeStep | E4: 0.003 | G4: ATM Vol | H4: =SwaptionInterpolation(B6,B5,'Swaption Vol Curve'!A5:A19,'Swaption Vol Curve'!C3:P3,'Swaption Vol Curve'!C5:P19)/100 -> 0.125
A5: SwapMaturity | B5: 10 | D5: StrikeMin | E5: 0
A6: Option Maturity | B6: 5 | D6: StrikeMax | E6: 0.45 | G6: Suggested a | H6: =H4*B4^(1-C10) -> 0.06279716079 | J6: Error | K6: =SUM(B50:BL50) -> 0.0006689062611
A7: SABR | O7: 0.0714 | P7: 0.8 | Q7: 0.6 | R7: 0.309
D8: =D11/E11 -> 1.93442623 | E8: =SQRT(1-D11^2)*E11 -> 0.2462579897 | K8: Mode: | L8: Manual
B9: a | C9: b | D9: r | E9: n | M9: s0 | N9: 0.025 | O9: 0.198833481 | P9: 0.1685995586 | Q9: 0.1499083979 | R9: 0.1401562174 | S9: 0.1388450565 | T9: 0.1442166588 | U9: 0.1529997069 | V9: 0.1627062295 | W9: 0.1722006989 | X9: 0.1810970937 | Y9: 0.1893122194 | Z9: 0.1968713692 | AA9: 0.2038336408 | AB9: 0.2102641789 | AC9: 0.2162243278 | AD9: 0.2217686516 | AE9: 0.2269445681
B10: 0.0725 | C10: 0.8 | D10: 0.6 | E10: 0.309 | F10: 705 | G10: 47 | H10: 1590 | I10: 305 | N10: 0.03 | O10: 0.2089626565 | P10: 0.1779917248 | Q10: 0.1572381161 | R10: 0.1432885633 | S10: 0.1352864924 | T10: 0.1331628795 | U10: 0.1362135124 | V10: 0.1426116265 | W10: 0.1504731422 | X10: 0.1586416296 | Y10: 0.1665834771 | Z10: 0.1740958769 | AA10: 0.181124705 | AB10: 0.187677843 | AC10: 0.1937868909 | AD10: 0.1994906111 | AE10: 0.2048279197
A11: CurrentValues from Curve | B11: =4*F10/100000 -> 0.0282 | C11: =G10/100 -> 0.47 | D11: =-1+H10/1000 -> 0.59 | E11: =I10/1000 -> 0.305 | N11: 0.04 | O11: 0.2251507748 | P11: 0.1940144827 | Q11: 0.1721708841 | R11: 0.1557830988 | S11: 0.1433003422 | T11: 0.1341139041 | U11: 0.1281116274 | V11: 0.125387983 | W11: 0.1258744067 | X11: 0.129031522 | Y11: 0.1339624501 | Z11: 0.1398110046 | AA11: 0.1459876106 | AB11: 0.1521566021 | AC11: 0.1581483968 | AD11: 0.1638868522 | AE11: 0.1693450387
O12: =VOLSABR_H_N($N$9,B46,$B$6,0,$B$11,$C$11,$D$11,$E$11) -> 0.003627806772 | P12: =VOLSABR_H_N($N$9,C46,$B$6,0,$B$11,$C$11,$D$11,$E$11) -> 0.003724217298 | Q12: 0.003892950092 | R12: 0.004149097028 | S12: 0.004483198148 | T12: 0.004871227816 | U12: 0.005289986913 | V12: 0.005723530666 | W12: 0.006162451743 | X12: 0.006601561501 | Y12: 0.007038100577 | Z12: 0.007470659284 | AA12: 0.007898572972 | AB12: 0.008321588871 | AC12: 0.00873968153 | AD12: 0.009152949272 | AE12: 0.009561555348
O13: =VOLSABR_H_N($N$10,B46,$B$6,0,$B$11,$C$11,$D$11,$E$11) -> 0.004019071601 | P13: =VOLSABR_H_N($N$10,C46,$B$6,0,$B$11,$C$11,$D$11,$E$11) -> 0.0040445075 | Q13: 0.004109571125 | R13: 0.004238720153 | S13: 0.004447057693 | T13: 0.004733086835 | U13: 0.005080523753 | V13: 0.005468609985 | W13: 0.005880172959 | X13: 0.006303622656 | Y13: 0.006731860573 | Z13: 0.007160731903 | AA13: 0.007587866401 | AB13: 0.008011947602 | AC13: 0.008432278286 | AD13: 0.008848525983 | AE13: 0.009260573502
O14: =VOLSABR_H_N($N$11,B46,$B$6,0,$B$11,$C$11,$D$11,$E$11) -> 0.004858249948 | P14: =VOLSABR_H_N($N$11,C46,$B$6,0,$B$11,$C$11,$D$11,$E$11) -> 0.004821350145 | Q14: 0.004788529718 | R14: 0.004774464908 | S14: 0.004794158509 | T14: 0.004863306942 | U14: 0.004995635169 | V14: 0.005197944783 | W14: 0.005466585619 | X14: 0.005789271975 | Y14: 0.006150727759 | Z14: 0.006537374107 | AA14: 0.006939073521 | AB14: 0.007348927373 | AC14: 0.007762458305 | AD14: 0.008176830008 | AE14: 0.008590272612
N16: -0.6 | O16: 0.3199013627 | P16: 0.2776713702 | Q16: 0.2464168673 | R16: 0.2214373253 | S16: 0.2005854732 | T16: 0.1827329829 | U16: 0.1672605376 | V16: 0.1538553171 | W16: 0.1424196265 | X16: 0.1330086715 | Y16: 0.1257415186 | Z16: 0.1206633043 | AA16: 0.1176225583 | AB16: 0.1162711988 | AC16: 0.1161813476 | AD16: 0.1169632543 | AE16: 0.1183166551
N17: -0.3 | O17: 0.304245224 | P17: 0.2637878812 | Q17: 0.2342315394 | R17: 0.2110330589 | S17: 0.1921737429 | T17: 0.176657476 | U17: 0.1640047001 | V17: 0.1540228876 | W17: 0.1466444956 | X17: 0.1417685694 | Y17: 0.1391410408 | Z17: 0.1383481432 | AA17: 0.1389146378 | AB17: 0.1404108509 | AC17: 0.1425036733 | AD17: 0.144957387 | AE17: 0.1476133694
M18: rho | N18: 0 | O18: 0.2807636861 | P18: 0.243014905 | Q18: 0.2159050863 | R18: 0.1951856789 | S18: 0.1790538626 | T18: 0.1667026533 | U18: 0.1577862557 | V18: 0.1520990183 | W18: 0.149326979 | X18: 0.1489440962 | Y18: 0.1503039495 | Z18: 0.1528046109 | AA18: 0.1559837002 | AB18: 0.1595256738 | AC18: 0.1632292192 | AD18: 0.1669707696 | AE18: 0.1706765215
N19: 0.3 | O19: 0.2485363562 | P19: 0.2144629838 | Q19: 0.1905675883 | R19: 0.1730822673 | S19: 0.1605630304 | T19: 0.1524779218 | U19: 0.1485285525 | V19: 0.1481649641 | W19: 0.1504670768 | X19: 0.1544312221 | Y19: 0.1592654347 | Z19: 0.164459258 | AA19: 0.1697194038 | AB19: 0.1748888524 | AC19: 0.1798889426 | AD19: 0.1846844474 | AE19: 0.1892637779
N20: 0.6 | O20: 0.2047212506 | P20: 0.1754577406 | Q20: 0.1556221589 | R20: 0.1422693485 | S20: 0.134683484 | T20: 0.1328135281 | U20: 0.1359452232 | V20: 0.1422990027 | W20: 0.1500647889 | X20: 0.1581307934 | Y20: 0.1659797076 | Z20: 0.1734122494 | AA20: 0.1803735551 | AB20: 0.1868697051 | AC20: 0.1929304719 | AD20: 0.1985930436 | AE20: 0.2038950527
M22: beta
N23: 0.6 | O23: 0.3630836098 | P23: 0.3306666765 | Q23: 0.3128032574 | R23: 0.3035276011 | S23: 0.2996512294 | T23: 0.2991297272 | U23: 0.3006117065 | V23: 0.3032304415 | W23: 0.306450001 | X23: 0.3099478963 | Y23: 0.313533832 | Z23: 0.3170976091 | AA23: 0.3205771212 | AB23: 0.3239390613 | AC23: 0.327167345 | AD23: 0.3302561473 | AE23: 0.3332056886
N24: 0.7 | O24: 0.2614643455 | P24: 0.2308537623 | Q24: 0.2122690637 | R24: 0.2019116884 | S24: 0.1979256184 | T24: 0.1986906962 | U24: 0.2025323494 | V24: 0.2080330366 | W24: 0.214238675 | X24: 0.2206026447 | Y24: 0.2268432701 | Z24: 0.232828649 | AA24: 0.2385061893 | AB24: 0.2438637816 | AC24: 0.2489092284 | AD24: 0.2536594944 | AE24: 0.2581351326
N25: 0.8 | O25: 0.2047212506 | P25: 0.1754577406 | Q25: 0.1556221589 | R25: 0.1422693485 | S25: 0.134683484 | T25: 0.1328135281 | U25: 0.1359452232 | V25: 0.1422990027 | W25: 0.1500647889 | X25: 0.1581307934 | Y25: 0.1659797076 | Z25: 0.1734122494 | AA25: 0.1803735551 | AB25: 0.1868697051 | AC25: 0.1929304719 | AD25: 0.1985930436 | AE25: 0.2038950527
B27: 0.057
M28: nu | N28: 0.1 | O28: 0.1437020633 | P28: 0.1392171111 | Q28: 0.1379141527 | R28: 0.1381405719 | S28: 0.1391262375 | T28: 0.1404799123 | U28: 0.1419959023 | V28: 0.1435644136 | W28: 0.1451267346 | X28: 0.1466519683 | Y28: 0.1481246191 | Z28: 0.1495378126 | AA28: 0.1508895132 | AB28: 0.1521803763 | AC28: 0.153412511 | AD28: 0.1545887612 | AE28: 0.1557122868
N29: 0.2 | O29: 0.1655903083 | P29: 0.1483976484 | Q29: 0.1385597487 | R29: 0.1338343507 | S29: 0.1329801163 | T29: 0.1348456 | U29: 0.1383386117 | V29: 0.1426263154 | W29: 0.147189457 | X29: 0.1517456547 | Y29: 0.1561560102 | Z29: 0.1603599298 | AA29: 0.1643373894 | AB29: 0.1680886184 | AC29: 0.1716234567 | AD29: 0.1749558416 | AE29: 0.1781009834
N30: 0.3 | O30: 0.2012789405 | P30: 0.1729407318 | Q30: 0.1538659544 | R30: 0.1412013927 | S30: 0.1342314136 | T30: 0.1328003849 | U30: 0.136071844 | V30: 0.1422983744 | W30: 0.1498026069 | X30: 0.1575699389 | Y30: 0.1651260947 | Z30: 0.1722860695 | AA30: 0.1789978164 | AB30: 0.1852662543 | AC30: 0.191118859 | AD30: 0.1965904044 | AE30: 0.2017163233
M32: alpha | N32: 0.05 | O32: 0.1735404927 | P32: 0.1451810958 | Q32: 0.1248586997 | R32: 0.1096098235 | S32: 0.09858536163 | T32: 0.09222081799 | U32: 0.09161558935 | V32: 0.09646675727 | W32: 0.1042762694 | X32: 0.1128423809 | Y32: 0.1211885548 | Z32: 0.1290077488 | AA32: 0.1362443102 | AB32: 0.1429263036 | AC32: 0.1491056593 | AD32: 0.1548372453 | AE32: 0.1601718919
N33: 0.1 | O33: 0.2486359872 | P33: 0.220114472 | Q33: 0.2029098764 | R33: 0.1936901348 | S33: 0.1908776632 | T33: 0.1929444033 | U33: 0.1981424775 | V33: 0.2049483562 | W33: 0.2123525012 | X33: 0.2197985495 | Y33: 0.227015437 | Z33: 0.2338869484 | AA33: 0.2403753291 | AB33: 0.2464808848 | AC33: 0.2522213849 | AD33: 0.2576217113 | AE33: 0.2627087219
N34: 0.15 | O34: 0.3368881329 | P34: 0.3131875513 | Q34: 0.3024274427 | R34: 0.2994533054 | S34: 0.3012096604 | T34: 0.3056429372 | U34: 0.3114324306 | V34: 0.3177913501 | W34: 0.3242795298 | X34: 0.3306631409 | Y34: 0.3368253455 | Z34: 0.3427139534 | AA34: 0.3483118814 | AB34: 0.3536207067 | AC34: 0.3586515422 | AD34: 0.3634199802 | AE34: 0.3679433057
J35: =B4 | R35: x
A46: Strikes | B46: =MAX(C46-$E$4,$E$5) -> 0.008 | C46: =MAX(D46-$E$4,$E$5) -> 0.011 | D46: 0.014 | E46: 0.017 | F46: 0.02 | G46: 0.023 | H46: 0.026 | I46: 0.029 | J46: =$B$4 -> 0.032 | K46: =J46+$E$4 -> 0.035 | L46: 0.038 | M46: 0.041 | N46: 0.044 | O46: 0.047 | P46: 0.05 | Q46: 0.053 | R46: 0.056 | S46: 0.059 | T46: 0.062 | U46: 0.065 | V46: 0.068 | W46: 0.071 | X46: 0.074 | Y46: 0.077 | Z46: 0.08 | AA46: 0.083 | AB46: 0.086 | AC46: 0.089 | AD46: 0.092 | AE46: 0.095 | AF46: 0.098 | AG46: 0.101 | AH46: 0.104 | AI46: 0.107 | AJ46: 0.11 | AK46: 0.113 | AL46: 0.116 | AM46: 0.119 | AN46: 0.122 | AO46: 0.125 | AP46: 0.128 | AQ46: =AP46+$E$4 -> 0.131 | AR46: 0.134 | AS46: 0.137 | AT46: 0.14 | AU46: 0.143 | AV46: 0.146 | AW46: 0.149 | AX46: 0.152 | AY46: 0.155 | AZ46: 0.158 | BA46: 0.161 | BB46: 0.164 | BC46: 0.167 | BD46: 0.17 | BE46: 0.173 | BF46: 0.176 | BG46: 0.179 | BH46: 0.182 | BI46: 0.185 | BJ46: 0.188 | BK46: 0.191 | BL46: 0.194
A47: SABR Vol | B47: =SABR_Vol($B$10,$C$10,$D$10,$E$10,$B$4,B46,$B$6) -> 0.1920455642 | C47: =SABR_Vol($B$10,$C$10,$D$10,$E$10,$B$4,C46,$B$6) -> 0.1681983801 | D47: 0.151554169 | E47: =SABR_Vol($B$10,$C$10,$D$10,$E$10,$B$4,E46,$B$6) -> 0.1404431719 | F47: 0.1345294474 | G47: 0.1337313386 | H47: 0.1372383261 | I47: 0.1434456464 | J47: =SABR_Vol($B$10,$C$10,$D$10,$E$10,$B$4,J46,$B$6) -> 0.1508411455 | K47: 0.1584987759 | L47: 0.1659726893 | M47: 0.1730811617 | N47: 0.1797678867 | O47: 0.1860322833 | P47: 0.1918969337 | Q47: 0.1973926851 | R47: 0.2025519344 | S47: 0.2074057093 | T47: 0.2119825237 | U47: 0.2163080572 | V47: 0.2204052095 | W47: 0.2242943115 | X47: 0.2279933904 | Y47: 0.2315184392 | Z47: 0.2348836686 | AA47: 0.2381017334 | AB47: 0.2411839321 | AC47: 0.2441403801 | AD47: 0.246980159 | AE47: 0.2497114454 | AF47: 0.2523416219 | AG47: 0.2548773724 | AH47: 0.2573247642 | AI47: 0.2596893191 | AJ47: 0.2619760748 | AK47: 0.2641896385 | AL47: 0.2663342328 | AM47: 0.2684137368 | AN47: 0.2704317211 | AO47: 0.2723914793 | AP47: =SABR_Vol($B$10,$C$10,$D$10,$E$10,$B$4,AP46,$B$6) -> 0.2742960547 | AQ47: 0.2761482652 | AR47: 0.2779507242 | AS47: 0.2797058596 | AT47: 0.2814159308 | AU47: 0.2830830432 | AV47: 0.2847091622 | AW47: 0.2862961248 | AX47: 0.2878456504 | AY47: 0.2893593506 | AZ47: 0.2908387377 | BA47: 0.2922852326 | BB47: 0.2937001722 | BC47: 0.2950848153 | BD47: 0.2964403487 | BE47: 0.2977678928 | BF47: 0.299068506 | BG47: 0.300343189 | BH47: 0.3015928896 | BI47: 0.3028185054 | BJ47: 0.3040208877 | BK47: 0.3052008449 | BL47: 0.3063591445
A48: Market Vol | B48: 0.2097054867 | C48: 0.1787063799 | D48: 0.1578595445 | E48: 0.1437133556 | F48: 0.1353623555 | G48: 0.1327452214 | H48: 0.1352966906 | I48: 0.1413370303 | J48: 0.14899512 | K48: 0.1570608453 | L48: 0.1649548828 | M48: 0.1724481283 | N48: 0.1794727335 | O48: 0.1860294772 | P48: 0.1921462114 | Q48: 0.1978596708 | R48: 0.2032076512 | S48: 0.2082258028 | T48: 0.212946489 | U48: 0.2173985618 | V48: 0.221607529 | W48: 0.2255958698 | X48: 0.2293833874 | Y48: 0.2329875503 | Z48: 0.2364238014 | AA48: 0.2397058309 | AB48: 0.2428458115 | AC48: 0.2458546008 | AD48: 0.2487419138 | AE48: 0.2515164706 | AF48: 0.2541861219 | AG48: 0.2567579567 | AH48: 0.2592383947 | AI48: 0.2616332651 | AJ48: 0.263947875 | AK48: 0.2661870682 | AL48: 0.2683552764 | AM48: 0.2704565635 | AN48: 0.2724946644 | AO48: 0.2744730186 | AP48: 0.2763948002 | AQ48: 0.2782629439 | AR48: 0.280080168 | AS48: 0.2818489947 | AT48: 0.2835717685 | AU48: 0.2852506719 | AV48: 0.2868877399 | AW48: 0.2884848725 | AX48: 0.2900438469 | AY48: 0.2915663268 | AZ48: 0.2930538725 | BA48: 0.2945079484 | BB48: 0.2959299314 | BC48: 0.297321117 | BD48: 0.2986827258 | BE48: 0.3000159091 | BF48: 0.3013217536 | BG48: 0.3026012866 | BH48: 0.30385548 | BI48: 0.3050852539 | BJ48: 0.3062914805 | BK48: 0.3074749873 | BL48: 0.3086365598
A49: SABR Vol 2 | B49: =SABR_Vol($B$11,$C$11,$D$11,$E$11,$B$4,B46,$B$6) -> 0.2432772681 | C49: =SABR_Vol($B$11,$C$11,$D$11,$E$11,$B$4,C46,$B$6) -> 0.2148622503 | D49: 0.1958229859 | E49: 0.1835337629 | F49: 0.176693784 | G49: 0.1742385969 | H49: 0.1749779429 | I49: 0.1777315838 | J49: 0.1815711344 | K49: 0.1858893655 | L49: 0.1903335396 | M49: 0.1947140257 | N49: 0.1989358469 | O49: 0.2029564654 | P49: 0.2067616671 | Q49: 0.2103521744 | R49: 0.2137362801 | S49: 0.2169258053 | T49: 0.2199338934 | U49: 0.2227738224 | V49: 0.2254583875 | W49: 0.2279996009 | X49: 0.2304085718 | Y49: 0.2326954823 | Z49: 0.2348696175 | AA49: 0.2369394207 | AB49: 0.2389125598 | AC49: 0.2407959973 | AD49: 0.2425960578 | AE49: 0.2443184916 | AF49: 0.2459685336 | AG49: 0.2475509559 | AH49: 0.2490701157 | AI49: 0.250529998 | AJ49: 0.2519342533 | AK49: 0.2532862315 | AL49: 0.2545890119 | AM49: 0.2558454295 | AN49: 0.2570580993 | AO49: 0.2582294366 | AP49: 0.2593616761 | AQ49: 0.2604568888 | AR49: 0.2615169965 | AS49: 0.2625437851 | AT49: 0.2635389171 | AU49: 0.2645039415 | AV49: 0.2654403041 | AW49: 0.2663493557 | AX49: 0.2672323601 | AY49: 0.2680905011 | AZ49: 0.2689248888 | BA49: 0.2697365654 | BB49: 0.2705265104 | BC49: 0.2712956453 | BD49: 0.2720448382 | BE49: 0.2727749074 | BF49: 0.2734866249 | BG49: 0.2741807201 | BH49: 0.2748578826 | BI49: 0.2755187648 | BJ49: 0.2761639846 | BK49: 0.2767941276 | BL49: 0.2774097493
B50: =IF(B48,ABS(B47-B48)^2,0) -> 0.0003118728647 | C50: =IF(C48,ABS(C47-C48)^2,0) -> 0.0001104180599 | D50: 3.975776105e-05 | E50: 1.069410145e-05 | F50: 6.937358267e-07 | G50: 9.724271651e-07 | H50: 3.769948323e-06 | I50: 4.446261707e-06 | J50: 3.407809968e-06 | K50: 2.067644647e-06 | L50: 1.035930179e-06 | M50: 4.007313285e-07 | N50: 8.711537645e-08 | O50: 7.874140281e-12 | P50: 6.213937769e-08 | Q50: 2.180756037e-07 | R50: 4.299645302e-07 | S50: 6.725533837e-07 | T50: 9.292290985e-07 | U50: 1.18920018e-06 | V50: 1.445572254e-06 | W50: 1.694054169e-06 | X50: 1.932091727e-06 | Y50: 2.158287181e-06 | Z50: 2.372009039e-06 | AA50: 2.57312885e-06 | AB50: 2.761843102e-06 | AC50: 2.938552492e-06 | AD50: 3.103780079e-06 | AE50: 3.258115949e-06 | AF50: 3.402180019e-06 | AG50: 3.536597313e-06 | AH50: 3.661981823e-06 | AI50: 3.778926287e-06 | AJ50: 3.887996029e-06 | AK50: 3.9897256e-06 | AL50: 4.084617303e-06 | AM50: 4.173140991e-06 | AN50: 4.255734709e-06 | AO50: 4.332805859e-06 | AP50: 4.404732694e-06 | AQ50: 4.47186598e-06 | AR50: 4.534530744e-06 | AS50: 4.593028016e-06 | AT50: 4.647636542e-06 | AU50: 4.69861443e-06 | AV50: 4.74620071e-06 | AW50: 4.7906168e-06 | AX50: 4.832067883e-06 | AY50: 4.870744176e-06 | AZ50: 4.906822113e-06 | BA50: 4.940465431e-06 | BB50: 4.971826178e-06 | BC50: 5.00104563e-06 | BD50: 5.028255138e-06 | BE50: 5.053576909e-06 | BF50: 5.077124716e-06 | BG50: 5.099004547e-06 | BH50: 5.119315213e-06 | BI50: 5.138148888e-06 | BJ50: 5.155591617e-06 | BK50: 5.171723776e-06 | BL50: 5.186620495e-06
B51: =B46*$H$4 -> 0.001 | C51: =C46*$H$4 -> 0.001375 | D51: 0.00175 | E51: 0.002125 | F51: 0.0025 | G51: 0.002875 | H51: 0.00325 | I51: 0.003625 | J51: 0.004 | K51: 0.004375 | L51: 0.00475 | M51: 0.005125 | N51: 0.0055 | O51: 0.005875 | P51: 0.00625 | Q51: 0.006625 | R51: 0.007 | S51: 0.007375 | T51: 0.00775 | U51: 0.008125 | V51: 0.0085 | W51: 0.008875 | X51: 0.00925 | Y51: 0.009625 | Z51: 0.01 | AA51: 0.010375 | AB51: 0.01075 | AC51: 0.011125 | AD51: 0.0115 | AE51: 0.011875 | AF51: 0.01225 | AG51: 0.012625 | AH51: 0.013 | AI51: 0.013375 | AJ51: 0.01375 | AK51: 0.014125 | AL51: 0.0145 | AM51: 0.014875 | AN51: 0.01525 | AO51: 0.015625 | AP51: 0.016 | AQ51: 0.016375 | AR51: 0.01675 | AS51: 0.017125 | AT51: 0.0175 | AU51: 0.017875 | AV51: 0.01825 | AW51: 0.018625 | AX51: 0.019 | AY51: 0.019375 | AZ51: 0.01975 | BA51: 0.020125 | BB51: 0.0205 | BC51: 0.020875 | BD51: 0.02125 | BE51: 0.021625 | BF51: 0.022 | BG51: 0.022375 | BH51: 0.02275 | BI51: 0.023125 | BJ51: 0.0235 | BK51: 0.023875 | BL51: 0.02425
B52: 0.2097054867 | C52: 0.1787063799 | D52: 0.1578595445 | E52: 0.1437133556 | F52: 0.1353623555 | G52: 0.1327452214 | H52: 0.1352966906 | I52: 0.1413370303 | J52: 0.14899512 | K52: 0.1570608453 | L52: 0.1649548828 | M52: 0.1724481283 | N52: 0.1794727335 | O52: 0.1860294772 | P52: 0.1921462114 | Q52: 0.1978596708 | R52: 0.2032076512 | S52: 0.2082258028 | T52: 0.212946489 | U52: 0.2173985618 | V52: 0.221607529 | W52: 0.2255958698 | X52: 0.2293833874 | Y52: 0.2329875503 | Z52: 0.2364238014 | AA52: 0.2397058309 | AB52: 0.2428458115 | AC52: 0.2458546008 | AD52: 0.2487419138 | AE52: 0.2515164706 | AF52: 0.2541861219 | AG52: 0.2567579567 | AH52: 0.2592383947 | AI52: 0.2616332651 | AJ52: 0.263947875 | AK52: 0.2661870682 | AL52: 0.2683552764 | AM52: 0.2704565635 | AN52: 0.2724946644 | AO52: 0.2744730186 | AP52: 0.2763948002 | AQ52: 0.2782629439 | AR52: 0.280080168 | AS52: 0.2818489947 | AT52: 0.2835717685 | AU52: 0.2852506719 | AV52: 0.2868877399 | AW52: 0.2884848725 | AX52: 0.2900438469 | AY52: 0.2915663268 | AZ52: 0.2930538725 | BA52: 0.2945079484 | BB52: 0.2959299314 | BC52: 0.297321117 | BD52: 0.2986827258 | BE52: 0.3000159091 | BF52: 0.3013217536 | BG52: 0.3026012866 | BH52: 0.30385548 | BI52: 0.3050852539 | BJ52: 0.3062914805 | BK52: 0.3074749873 | BL52: 0.3086365598
B53: 0.2143597484 | C53: 0.182666763 | D53: 0.1620371583 | E53: 0.1470542973 | F53: 0.1354646411 | G53: 0.1261218558 | H53: 0.1183665404 | I53: 0.1117862666 | J53: 0.1061068635 | K53: 0.1011373981 | L53: 0.0967399368 | M53: 0.09281182869 | N53: 0.08927477944 | O53: 0.08606782381 | P53: 0.08314264437 | Q53: 0.08046035877 | R53: 0.07798925767 | S53: 0.07570317619 | T53: 0.07358029824 | U53: 0.07160226348 | V53: 0.06975348985 | W53: 0.0680206525 | X53: 0.06639227798 | Y53: 0.06485842462 | Z53: 0.06341042818 | AA53: 0.06204069744 | AB53: 0.0607425486 | AC53: 0.05951007002 | AD53: 0.05833801086 | AE53: 0.05722168881 | AF53: 0.05615691318 | AG53: 0.05513992032 | AH53: 0.05416731919 | AI53: 0.05323604517 | AJ53: 0.05234332068 | AK53: 0.05148662156 | AL53: 0.05066364799 | AM53: 0.04987229955 | AN53: 0.04911065353 | AO53: 0.04837694603 | AP53: 0.04766955549 | AQ53: 0.0469869883 | AR53: 0.0463278661 | AS53: 0.04569091459 | AT53: 0.04507495368 | AU53: 0.04447888871 | AV53: 0.04390170271 | AW53: 0.0433424494 | AX53: 0.0428002471 | AY53: 0.04227427309 | AZ53: 0.0417637587 | BA53: 0.04126798483 | BB53: 0.04078627792 | BC53: 0.04031800633 | BD53: 0.03986257703 | BE53: 0.03941943265 | BF53: 0.03898804877 | BG53: 0.03856793147 | BH53: 0.03815861509 | BI53: 0.03775966018 | BJ53: 0.03737065167 | BK53: 0.03699119714 | BL53: 0.03662092528

Sheet SABR Smile Designer Moni
A1: SABR Smile Designer
A3: Market | B3: EUR | N3: rhotilde | O3: rho * nu | Q3: rho | R3: rhotilde / nu
A4: SwapRate | B4: 0.032 | D4: StrikeStep | E4: 0.003 | G4: ATM Vol | H4: =SwaptionInterpolation(B6,B5,'Swaption Vol Curve'!A5:A19,'Swaption Vol Curve'!C3:P3,'Swaption Vol Curve'!C5:P19)/100 -> 0.125 | J4: =B4^(1-C10)*H4 -> 0.06279716079 | N4: gamma | O4: sqrt(1-rho^2)*nu | Q4: nu | R4: sqrt(gamma^2+rohtilde^2)
A5: SwapMaturity | B5: 10 | D5: StrikeMin | E5: 0
A6: Option Maturity | B6: 5 | D6: StrikeMax | E6: 0.45 | G6: Suggested a | H6: =H4*B4^(1-C10) -> 0.06279716079 | J6: Error | K6: =SUM(B50:BL50) -> 0.02903780907
A7: SABR | O7: 0.0714 | P7: 0.8 | Q7: 0.6 | R7: 0.309
H8: rhotilde | I8: gamma | K8: Mode: | L8: Automatic
B9: a | C9: b | D9: r | E9: n | M9: s0 | N9: 0.025 | O9: 0.198833481 | P9: 0.1685995586 | Q9: 0.1499083979 | R9: 0.1401562174 | S9: 0.1388450565 | T9: 0.1442166588 | U9: 0.1529997069 | V9: 0.1627062295 | W9: 0.1722006989 | X9: 0.1810970937 | Y9: 0.1893122194 | Z9: 0.1968713692 | AA9: 0.2038336408 | AB9: 0.2102641789 | AC9: 0.2162243278 | AD9: 0.2217686516 | AE9: 0.2269445681
B10: =J4 -> 0.06279716079 | C10: 0.8 | D10: 0.6 | E10: 0.309 | F10: 41 | G10: 31 | H10: 508 | I10: 441 | N10: 0.03 | O10: 0.2089626565 | P10: 0.1779917248 | Q10: 0.1572381161 | R10: 0.1432885633 | S10: 0.1352864924 | T10: 0.1331628795 | U10: 0.1362135124 | V10: 0.1426116265 | W10: 0.1504731422 | X10: 0.1586416296 | Y10: 0.1665834771 | Z10: 0.1740958769 | AA10: 0.181124705 | AB10: 0.187677843 | AC10: 0.1937868909 | AD10: 0.1994906111 | AE10: 0.2048279197
A11: CurrentValues from Curve | B11: =B4^(1-C11)*F10/500 -> 0.007627238687 | C11: =G10/100 -> 0.31 | D11: =(-2+4*H10/1000)/E11 -> 0.07237207822 | E11: =SQRT((I10/1000)^2 + (-2+4*H10/1000)^2) -> 0.4421594735 | N11: 0.04 | O11: 0.2251507748 | P11: 0.1940144827 | Q11: 0.1721708841 | R11: 0.1557830988 | S11: 0.1433003422 | T11: 0.1341139041 | U11: 0.1281116274 | V11: 0.125387983 | W11: 0.1258744067 | X11: 0.129031522 | Y11: 0.1339624501 | Z11: 0.1398110046 | AA11: 0.1459876106 | AB11: 0.1521566021 | AC11: 0.1581483968 | AD11: 0.1638868522 | AE11: 0.1693450387
I12: =I10/1000 -> 0.441 | J12: =-1.5+3*H10/1000 -> 0.024 | O12: =VOLSABR_H_N($N$9,B46,$B$6,0,$B$11,$C$11,$D$11,$E$11) -> 0.003970993163 | P12: =VOLSABR_H_N($N$9,C46,$B$6,0,$B$11,$C$11,$D$11,$E$11) -> 0.003673872109 | Q12: 0.003363748548 | R12: 0.003055476617 | S12: 0.002781213903 | T12: 0.002617532946 | U12: 0.002674926303 | V12: 0.002948062518 | W12: 0.003326803173 | X12: 0.003741206986 | Y12: 0.004164368555 | Z12: 0.004586633107 | AA12: 0.005004528859 | AB12: 0.005416907021 | AC12: 0.00582353974 | AD12: 0.006224571767 | AE12: 0.006620292137
I13: =(I10/10000)^2 -> 0.00194481 | J13: =(-1.5+3*H10/1000)^2 -> 0.000576 | K13: =SQRT(I13+J13) -> 0.05020766874 | O13: =VOLSABR_H_N($N$10,B46,$B$6,0,$B$11,$C$11,$D$11,$E$11) -> 0.004646136876 | P13: =VOLSABR_H_N($N$10,C46,$B$6,0,$B$11,$C$11,$D$11,$E$11) -> 0.004356249222 | Q13: 0.004049053805 | R13: 0.00373085292 | S13: 0.003410342032 | T13: 0.003105532686 | U13: 0.002859683503 | V13: 0.002762507334 | W13: 0.002894054352 | X13: 0.003202017319 | Y13: 0.003588715887 | Z13: 0.004002254681 | AA13: 0.00442232021 | AB13: 0.004841194746 | AC13: 0.005255942503 | AD13: 0.005665532435 | AE13: 0.006069729238
O14: =VOLSABR_H_N($N$11,B46,$B$6,0,$B$11,$C$11,$D$11,$E$11) -> 0.005941999074 | P14: =VOLSABR_H_N($N$11,C46,$B$6,0,$B$11,$C$11,$D$11,$E$11) -> 0.005668139723 | Q14: 0.005376641668 | R14: 0.005071149507 | S14: 0.004754130036 | T14: 0.00442799088 | U14: 0.00409620323 | V14: 0.003765328353 | W14: 0.003449679467 | X14: 0.003182249982 | Y14: 0.003031760322 | Z14: 0.003081264596 | AA14: 0.003324966366 | AB14: 0.003677456825 | AC14: 0.004074598838 | AD14: 0.004487024943 | AE14: 0.004902607533
N16: -0.6 | O16: 0.3199013627 | P16: 0.2776713702 | Q16: 0.2464168673 | R16: 0.2214373253 | S16: 0.2005854732 | T16: 0.1827329829 | U16: 0.1672605376 | V16: 0.1538553171 | W16: 0.1424196265 | X16: 0.1330086715 | Y16: 0.1257415186 | Z16: 0.1206633043 | AA16: 0.1176225583 | AB16: 0.1162711988 | AC16: 0.1161813476 | AD16: 0.1169632543 | AE16: 0.1183166551
N17: -0.3 | O17: 0.304245224 | P17: 0.2637878812 | Q17: 0.2342315394 | R17: 0.2110330589 | S17: 0.1921737429 | T17: 0.176657476 | U17: 0.1640047001 | V17: 0.1540228876 | W17: 0.1466444956 | X17: 0.1417685694 | Y17: 0.1391410408 | Z17: 0.1383481432 | AA17: 0.1389146378 | AB17: 0.1404108509 | AC17: 0.1425036733 | AD17: 0.144957387 | AE17: 0.1476133694
M18: rho | N18: 0 | O18: 0.2807636861 | P18: 0.243014905 | Q18: 0.2159050863 | R18: 0.1951856789 | S18: 0.1790538626 | T18: 0.1667026533 | U18: 0.1577862557 | V18: 0.1520990183 | W18: 0.149326979 | X18: 0.1489440962 | Y18: 0.1503039495 | Z18: 0.1528046109 | AA18: 0.1559837002 | AB18: 0.1595256738 | AC18: 0.1632292192 | AD18: 0.1669707696 | AE18: 0.1706765215
N19: 0.3 | O19: 0.2485363562 | P19: 0.2144629838 | Q19: 0.1905675883 | R19: 0.1730822673 | S19: 0.1605630304 | T19: 0.1524779218 | U19: 0.1485285525 | V19: 0.1481649641 | W19: 0.1504670768 | X19: 0.1544312221 | Y19: 0.1592654347 | Z19: 0.164459258 | AA19: 0.1697194038 | AB19: 0.1748888524 | AC19: 0.1798889426 | AD19: 0.1846844474 | AE19: 0.1892637779
N20: 0.6 | O20: 0.2047212506 | P20: 0.1754577406 | Q20: 0.1556221589 | R20: 0.1422693485 | S20: 0.134683484 | T20: 0.1328135281 | U20: 0.1359452232 | V20: 0.1422990027 | W20: 0.1500647889 | X20: 0.1581307934 | Y20: 0.1659797076 | Z20: 0.1734122494 | AA20: 0.1803735551 | AB20: 0.1868697051 | AC20: 0.1929304719 | AD20: 0.1985930436 | AE20: 0.2038950527
M22: beta
N23: 0.6 | O23: 0.3630836098 | P23: 0.3306666765 | Q23: 0.3128032574 | R23: 0.3035276011 | S23: 0.2996512294 | T23: 0.2991297272 | U23: 0.3006117065 | V23: 0.3032304415 | W23: 0.306450001 | X23: 0.3099478963 | Y23: 0.313533832 | Z23: 0.3170976091 | AA23: 0.3205771212 | AB23: 0.3239390613 | AC23: 0.327167345 | AD23: 0.3302561473 | AE23: 0.3332056886
N24: 0.7 | O24: 0.2614643455 | P24: 0.2308537623 | Q24: 0.2122690637 | R24: 0.2019116884 | S24: 0.1979256184 | T24: 0.1986906962 | U24: 0.2025323494 | V24: 0.2080330366 | W24: 0.214238675 | X24: 0.2206026447 | Y24: 0.2268432701 | Z24: 0.232828649 | AA24: 0.2385061893 | AB24: 0.2438637816 | AC24: 0.2489092284 | AD24: 0.2536594944 | AE24: 0.2581351326
N25: 0.8 | O25: 0.2047212506 | P25: 0.1754577406 | Q25: 0.1556221589 | R25: 0.1422693485 | S25: 0.134683484 | T25: 0.1328135281 | U25: 0.1359452232 | V25: 0.1422990027 | W25: 0.1500647889 | X25: 0.1581307934 | Y25: 0.1659797076 | Z25: 0.1734122494 | AA25: 0.1803735551 | AB25: 0.1868697051 | AC25: 0.1929304719 | AD25: 0.1985930436 | AE25: 0.2038950527
B27: 0.057
M28: nu | N28: 0.1 | O28: 0.1437020633 | P28: 0.1392171111 | Q28: 0.1379141527 | R28: 0.1381405719 | S28: 0.1391262375 | T28: 0.1404799123 | U28: 0.1419959023 | V28: 0.1435644136 | W28: 0.1451267346 | X28: 0.1466519683 | Y28: 0.1481246191 | Z28: 0.1495378126 | AA28: 0.1508895132 | AB28: 0.1521803763 | AC28: 0.153412511 | AD28: 0.1545887612 | AE28: 0.1557122868
N29: 0.2 | O29: 0.1655903083 | P29: 0.1483976484 | Q29: 0.1385597487 | R29: 0.1338343507 | S29: 0.1329801163 | T29: 0.1348456 | U29: 0.1383386117 | V29: 0.1426263154 | W29: 0.147189457 | X29: 0.1517456547 | Y29: 0.1561560102 | Z29: 0.1603599298 | AA29: 0.1643373894 | AB29: 0.1680886184 | AC29: 0.1716234567 | AD29: 0.1749558416 | AE29: 0.1781009834
N30: 0.3 | O30: 0.2012789405 | P30: 0.1729407318 | Q30: 0.1538659544 | R30: 0.1412013927 | S30: 0.1342314136 | T30: 0.1328003849 | U30: 0.136071844 | V30: 0.1422983744 | W30: 0.1498026069 | X30: 0.1575699389 | Y30: 0.1651260947 | Z30: 0.1722860695 | AA30: 0.1789978164 | AB30: 0.1852662543 | AC30: 0.191118859 | AD30: 0.1965904044 | AE30: 0.2017163233
M32: alpha | N32: 0.05 | O32: 0.1735404927 | P32: 0.1451810958 | Q32: 0.1248586997 | R32: 0.1096098235 | S32: 0.09858536163 | T32: 0.09222081799 | U32: 0.09161558935 | V32: 0.09646675727 | W32: 0.1042762694 | X32: 0.1128423809 | Y32: 0.1211885548 | Z32: 0.1290077488 | AA32: 0.1362443102 | AB32: 0.1429263036 | AC32: 0.1491056593 | AD32: 0.1548372453 | AE32: 0.1601718919
N33: 0.1 | O33: 0.2486359872 | P33: 0.220114472 | Q33: 0.2029098764 | R33: 0.1936901348 | S33: 0.1908776632 | T33: 0.1929444033 | U33: 0.1981424775 | V33: 0.2049483562 | W33: 0.2123525012 | X33: 0.2197985495 | Y33: 0.227015437 | Z33: 0.2338869484 | AA33: 0.2403753291 | AB33: 0.2464808848 | AC33: 0.2522213849 | AD33: 0.2576217113 | AE33: 0.2627087219
N34: 0.15 | O34: 0.3368881329 | P34: 0.3131875513 | Q34: 0.3024274427 | R34: 0.2994533054 | S34: 0.3012096604 | T34: 0.3056429372 | U34: 0.3114324306 | V34: 0.3177913501 | W34: 0.3242795298 | X34: 0.3306631409 | Y34: 0.3368253455 | Z34: 0.3427139534 | AA34: 0.3483118814 | AB34: 0.3536207067 | AC34: 0.3586515422 | AD34: 0.3634199802 | AE34: 0.3679433057
J35: =B4 | R35: x
A46: Strikes | B46: =MAX(C46-$E$4,$E$5) -> 0.008 | C46: =MAX(D46-$E$4,$E$5) -> 0.011 | D46: 0.014 | E46: 0.017 | F46: 0.02 | G46: 0.023 | H46: 0.026 | I46: 0.029 | J46: =$B$4 -> 0.032 | K46: =J46+$E$4 -> 0.035 | L46: 0.038 | M46: 0.041 | N46: 0.044 | O46: 0.047 | P46: 0.05 | Q46: 0.053 | R46: 0.056 | S46: 0.059 | T46: 0.062 | U46: 0.065 | V46: 0.068 | W46: 0.071 | X46: 0.074 | Y46: 0.077 | Z46: 0.08 | AA46: 0.083 | AB46: 0.086 | AC46: 0.089 | AD46: 0.092 | AE46: 0.095 | AF46: 0.098 | AG46: 0.101 | AH46: 0.104 | AI46: 0.107 | AJ46: 0.11 | AK46: 0.113 | AL46: 0.116 | AM46: 0.119 | AN46: 0.122 | AO46: 0.125 | AP46: 0.128 | AQ46: 0.131 | AR46: 0.134 | AS46: 0.137 | AT46: 0.14 | AU46: 0.143 | AV46: 0.146 | AW46: 0.149 | AX46: 0.152 | AY46: 0.155 | AZ46: 0.158 | BA46: 0.161 | BB46: 0.164 | BC46: 0.167 | BD46: 0.17 | BE46: 0.173 | BF46: 0.176 | BG46: 0.179 | BH46: 0.182 | BI46: 0.185 | BJ46: 0.188 | BK46: 0.191 | BL46: 0.194
A47: SABR Vol | B47: =SABR_Vol($B$10,$C$10,$D$10,$E$10,$B$4,B46,$B$6) -> 0.1781459583 | C47: =SABR_Vol($B$10,$C$10,$D$10,$E$10,$B$4,C46,$B$6) -> 0.1542761865 | D47: 0.1370436077 | E47: =SABR_Vol($B$10,$C$10,$D$10,$E$10,$B$4,E46,$B$6) -> 0.1247547417 | F47: 0.1171426523 | G47: 0.1145690496 | H47: 0.1169099412 | I47: 0.1227383465 | J47: 0.1302007167 | K47: 0.1380645565 | L47: 0.1457502968 | M47: 0.1530366327 | N47: 0.159862136 | O47: 0.1662311367 | P47: 0.1721729042 | Q47: 0.1777243213 | R47: 0.1829226608 | S47: 0.1878027362 | T47: 0.1923959599 | U47: 0.1967302258 | V47: 0.2008301294 | W47: 0.2047173078 | X47: 0.2084108004 | Y47: 0.2119273893 | Z47: 0.215281905 | AA47: 0.2184874922 | AB47: 0.2215558382 | AC47: 0.2244973691 | AD47: 0.2273214158 | AE47: 0.2300363557 | AF47: 0.2326497338 | AG47: 0.2351683655 | AH47: 0.2375984252 | AI47: 0.2399455217 | AJ47: 0.2422147637 | AK47: 0.2444108161 | AL47: 0.2465379486 | AM47: 0.2486000785 | AN47: 0.2506008073 | AO47: 0.2525434536 | AP47: 0.2544310808 | AQ47: 0.2562665228 | AR47: 0.2580524054 | AS47: 0.2597911663 | AT47: 0.261485072 | AU47: 0.2631362335 | AV47: 0.2647466199 | AW47: 0.2663180704 | AX47: 0.2678523058 | AY47: 0.2693509379 | AZ47: 0.2708154784 | BA47: 0.2722473473 | BB47: 0.2736478795 | BC47: 0.2750183317 | BD47: 0.2763598885 | BE47: 0.2776736673 | BF47: 0.2789607235 | BG47: 0.2802220547 | BH47: 0.2814586052 | BI47: 0.2826712693 | BJ47: 0.2838608949 | BK47: 0.2850282867 | BL47: 0.2861742086
A48: Market Vol | B48: 0.2097054867 | C48: 0.1787063799 | D48: 0.1578595445 | E48: 0.1437133556 | F48: 0.1353623555 | G48: 0.1327452214 | H48: 0.1352966906 | I48: 0.1413370303 | J48: 0.14899512 | K48: 0.1570608453 | L48: 0.1649548828 | M48: 0.1724481283 | N48: 0.1794727335 | O48: 0.1860294772 | P48: 0.1921462114 | Q48: 0.1978596708 | R48: 0.2032076512 | S48: 0.2082258028 | T48: 0.212946489 | U48: 0.2173985618 | V48: 0.221607529 | W48: 0.2255958698 | X48: 0.2293833874 | Y48: 0.2329875503 | Z48: 0.2364238014 | AA48: 0.2397058309 | AB48: 0.2428458115 | AC48: 0.2458546008 | AD48: 0.2487419138 | AE48: 0.2515164706 | AF48: 0.2541861219 | AG48: 0.2567579567 | AH48: 0.2592383947 | AI48: 0.2616332651 | AJ48: 0.263947875 | AK48: 0.2661870682 | AL48: 0.2683552764 | AM48: 0.2704565635 | AN48: 0.2724946644 | AO48: 0.2744730186 | AP48: 0.2763948002 | AQ48: 0.2782629439 | AR48: 0.280080168 | AS48: 0.2818489947 | AT48: 0.2835717685 | AU48: 0.2852506719 | AV48: 0.2868877399 | AW48: 0.2884848725 | AX48: 0.2900438469 | AY48: 0.2915663268 | AZ48: 0.2930538725 | BA48: 0.2945079484 | BB48: 0.2959299314 | BC48: 0.297321117 | BD48: 0.2986827258 | BE48: 0.3000159091 | BF48: 0.3013217536 | BG48: 0.3026012866 | BH48: 0.30385548 | BI48: 0.3050852539 | BJ48: 0.3062914805 | BK48: 0.3074749873 | BL48: 0.3086365598
A49: SABR Vol 2 | B49: =SABR_Vol($B$11,$C$11,$D$11,$E$11,$B$4,B46,$B$6) -> 0.2785411936 | C49: =SABR_Vol($B$11,$C$11,$D$11,$E$11,$B$4,C46,$B$6) -> 0.2329050322 | D49: 0.197485618 | E49: 0.1685125886 | F49: 0.1441090275 | G49: 0.1233881488 | H49: 0.1063078913 | I49: 0.09401248063 | J49: 0.08876534058 | K49: 0.09077805085 | L49: 0.09675011683 | M49: 0.1039192285 | N49: 0.1111307747 | O49: 0.1179999424 | P49: 0.1244212561 | Q49: 0.1303875785 | R49: 0.1359255892 | S49: 0.1410719264 | T49: 0.1458641499 | U49: 0.1503374113 | V49: 0.1545234088 | W49: 0.1584502648 | X49: 0.1621427618 | Y49: 0.1656226973 | Z49: 0.1689092542 | AA49: 0.1720193481 | AB49: 0.1749679352 | AC49: 0.1777682801 | AD49: 0.1804321846 | AE49: 0.1829701837 | AF49: 0.1853917116 | AG49: 0.1877052433 | AH49: 0.1899184151 | AI49: 0.192038128 | AJ49: 0.1940706353 | AK49: 0.1960216192 | AL49: 0.1978962554 | AM49: 0.1996992703 | AN49: 0.2014349894 | AO49: 0.2031073806 | AP49: 0.2047200911 | AQ49: 0.2062764799 | AR49: 0.207779647 | AS49: 0.2092324583 | AT49: 0.2106375677 | AU49: 0.2119974374 | AV49: 0.2133143551 | AW49: 0.2145904496 | AX49: 0.2158277051 | AY49: 0.2170279733 | AZ49: 0.2181929845 | BA49: 0.2193243581 | BB49: 0.2204236115 | BC49: 0.2214921677 | BD49: 0.2225313637 | BE49: 0.223542456 | BF49: 0.2245266279 | BG49: 0.2254849938 | BH49: 0.226418605 | BI49: 0.2273284541 | BJ49: 0.228215479 | BK49: 0.2290805668 | BL49: 0.2299245574
B50: =IF(B48,ABS(B47-B48)^2,0) -> 0.0009960038363 | C50: =IF(C48,ABS(C47-C48)^2,0) -> 0.0005968343459 | D50: 0.0004333032273 | E50: 0.0003594290415 | F50: 0.0003319575844 | G50: 0.0003303732215 | H50: 0.0003380725563 | I50: 0.0003459110411 | J50: 0.0003532295984 | K50: 0.0003608589884 | L50: 0.0003688161225 | M50: 0.0003768061611 | N50: 0.0003845755375 | O50: 0.0003919742862 | P50: 0.0003989329994 | Q50: 0.0004054322985 | R50: 0.0004114808339 | S50: 0.0004171016509 | T50: 0.0004223242467 | U50: 0.0004271801142 | V50: 0.0004317003346 | W50: 0.0004359143502 | X50: 0.0004398494085 | Y50: 0.0004435303801 | Z50: 0.0004469797807 | AA50: 0.0004502178974 | AB50: 0.0004532629624 | AC50: 0.0004561313441 | AD50: 0.000458837736 | AE50: 0.0004613953363 | AF50: 0.0004638160121 | AG50: 0.0004661104483 | AH50: 0.0004682882809 | AI50: 0.0004703582141 | AJ50: 0.0004723281251 | AK50: 0.0004742051557 | AL50: 0.0004759957927 | AM50: 0.0004777059392 | AN50: 0.0004793409767 | AO50: 0.0004809058206 | AP50: 0.000482404968 | AQ50: 0.0004838425408 | AR50: 0.0004852223235 | AS50: 0.0004865477963 | AT50: 0.0004878221648 | AU50: 0.0004890483866 | AV50: 0.0004902291941 | AW50: 0.000491367116 | AX50: 0.0004924644952 | AY50: 0.000493523506 | AZ50: 0.0004945461686 | BA50: 0.0004955343627 | BB50: 0.0004964898393 | BC50: 0.0004974142318 | BD50: 0.0004983090651 | BE50: 0.0004991757654 | BF50: 0.0005000156671 | BG50: 0.0005008300208 | BH50: 0.0005016199993 | BI50: 0.0005023867039 | BJ50: 0.0005031311698 | BK50: 0.0005038543705 | BL50: 0.0005045572231
B51: =B46*$H$4 -> 0.001 | C51: =C46*$H$4 -> 0.001375 | D51: 0.00175 | E51: 0.002125 | F51: 0.0025 | G51: 0.002875 | H51: 0.00325 | I51: 0.003625 | J51: 0.004 | K51: 0.004375 | L51: 0.00475 | M51: 0.005125 | N51: 0.0055 | O51: 0.005875 | P51: 0.00625 | Q51: 0.006625 | R51: 0.007 | S51: 0.007375 | T51: 0.00775 | U51: 0.008125 | V51: 0.0085 | W51: 0.008875 | X51: 0.00925 | Y51: 0.009625 | Z51: 0.01 | AA51: 0.010375 | AB51: 0.01075 | AC51: 0.011125 | AD51: 0.0115 | AE51: 0.011875 | AF51: 0.01225 | AG51: 0.012625 | AH51: 0.013 | AI51: 0.013375 | AJ51: 0.01375 | AK51: 0.014125 | AL51: 0.0145 | AM51: 0.014875 | AN51: 0.01525 | AO51: 0.015625 | AP51: 0.016 | AQ51: 0.016375 | AR51: 0.01675 | AS51: 0.017125 | AT51: 0.0175 | AU51: 0.017875 | AV51: 0.01825 | AW51: 0.018625 | AX51: 0.019 | AY51: 0.019375 | AZ51: 0.01975 | BA51: 0.020125 | BB51: 0.0205 | BC51: 0.020875 | BD51: 0.02125 | BE51: 0.021625 | BF51: 0.022 | BG51: 0.022375 | BH51: 0.02275 | BI51: 0.023125 | BJ51: 0.0235 | BK51: 0.023875 | BL51: 0.02425
B52: 0.2097054867 | C52: 0.1787063799 | D52: 0.1578595445 | E52: 0.1437133556 | F52: 0.1353623555 | G52: 0.1327452214 | H52: 0.1352966906 | I52: 0.1413370303 | J52: 0.14899512 | K52: 0.1570608453 | L52: 0.1649548828 | M52: 0.1724481283 | N52: 0.1794727335 | O52: 0.1860294772 | P52: 0.1921462114 | Q52: 0.1978596708 | R52: 0.2032076512 | S52: 0.2082258028 | T52: 0.212946489 | U52: 0.2173985618 | V52: 0.221607529 | W52: 0.2255958698 | X52: 0.2293833874 | Y52: 0.2329875503 | Z52: 0.2364238014 | AA52: 0.2397058309 | AB52: 0.2428458115 | AC52: 0.2458546008 | AD52: 0.2487419138 | AE52: 0.2515164706 | AF52: 0.2541861219 | AG52: 0.2567579567 | AH52: 0.2592383947 | AI52: 0.2616332651 | AJ52: 0.263947875 | AK52: 0.2661870682 | AL52: 0.2683552764 | AM52: 0.2704565635 | AN52: 0.2724946644 | AO52: 0.2744730186 | AP52: 0.2763948002 | AQ52: 0.2782629439 | AR52: 0.280080168 | AS52: 0.2818489947 | AT52: 0.2835717685 | AU52: 0.2852506719 | AV52: 0.2868877399 | AW52: 0.2884848725 | AX52: 0.2900438469 | AY52: 0.2915663268 | AZ52: 0.2930538725 | BA52: 0.2945079484 | BB52: 0.2959299314 | BC52: 0.297321117 | BD52: 0.2986827258 | BE52: 0.3000159091 | BF52: 0.3013217536 | BG52: 0.3026012866 | BH52: 0.30385548 | BI52: 0.3050852539 | BJ52: 0.3062914805 | BK52: 0.3074749873 | BL52: 0.3086365598
B53: 0.2143597484 | C53: 0.182666763 | D53: 0.1620371583 | E53: 0.1470542973 | F53: 0.1354646411 | G53: 0.1261218558 | H53: 0.1183665404 | I53: 0.1117862666 | J53: 0.1061068635 | K53: 0.1011373981 | L53: 0.0967399368 | M53: 0.09281182869 | N53: 0.08927477944 | O53: 0.08606782381 | P53: 0.08314264437 | Q53: 0.08046035877 | R53: 0.07798925767 | S53: 0.07570317619 | T53: 0.07358029824 | U53: 0.07160226348 | V53: 0.06975348985 | W53: 0.0680206525 | X53: 0.06639227798 | Y53: 0.06485842462 | Z53: 0.06341042818 | AA53: 0.06204069744 | AB53: 0.0607425486 | AC53: 0.05951007002 | AD53: 0.05833801086 | AE53: 0.05722168881 | AF53: 0.05615691318 | AG53: 0.05513992032 | AH53: 0.05416731919 | AI53: 0.05323604517 | AJ53: 0.05234332068 | AK53: 0.05148662156 | AL53: 0.05066364799 | AM53: 0.04987229955 | AN53: 0.04911065353 | AO53: 0.04837694603 | AP53: 0.04766955549 | AQ53: 0.0469869883 | AR53: 0.0463278661 | AS53: 0.04569091459 | AT53: 0.04507495368 | AU53: 0.04447888871 | AV53: 0.04390170271 | AW53: 0.0433424494 | AX53: 0.0428002471 | AY53: 0.04227427309 | AZ53: 0.0417637587 | BA53: 0.04126798483 | BB53: 0.04078627792 | BC53: 0.04031800633 | BD53: 0.03986257703 | BE53: 0.03941943265 | BF53: 0.03898804877 | BG53: 0.03856793147 | BH53: 0.03815861509 | BI53: 0.03775966018 | BJ53: 0.03737065167 | BK53: 0.03699119714 | BL53: 0.03662092528

Sheet SABR Smile Designer Mix
A1: SABR Smile Designer Tail Matched
A3: Market | B3: EUR
A4: SwapRate | B4: 0.002 | E4: Implied Vol | F4: =F10/2500 -> 0.1408
A5: SwapMaturity | B5: 10 | E5: Normal Vol
A6: Option Maturity | B6: 10
A7: SABR
K8: Mode: | L8: Automatic
B9: a | C9: b | D9: r | E9: n | M9: s0
B10: 0.0013 | D10: -0.36 | E10: 0.5 | F10: 352 | G10: 55 | H10: 185 | I10: 384 | J10: 635
A11: CurrentValues from Curve | B11: =F4/B4^(C11-1) -> 0.008591443786 | C11: =G10/100 -> 0.55 | D11: =-1+H10/100 -> 0.85 | E11: =I10/1000 -> 0.384 | F11: =J10/1000 -> 0.635
A12: Normal SABR Params | B12: =B4*F4 -> 0.0002816 | D12: =-1+H12/1000 -> -0.79 | E12: =E11/(1-C11) -> 0.8533333333 | F12: 1147 | G12: 43 | H12: 210 | I12: 204
I15: Free Toggle | N15: Normal Toggle | R15: Mix (controls the mixing) | V15: 0.001 | X15: -1.5 | Y15: 3
V16: 10 | X16: =(Y15-X15)*V15/20 -> 0.000225 | Y16: =COUNT(V27:AP27) -> 0
I17: implied vol | J17: beta | K17: rho | L17: nu | O17: rho | V17: Zero SABR | W17: Normal SABR
V18: =V22/V15^(V19-1) -> 0.001197157389 | W18: =V22*V15 -> 0.0006
V19: 0.1 | W19: 0
V20: 0 | W20: 0.6
V21: 1.165 | W21: =V21/(1-V19) -> 1.294444444
V22: 0.6
V24: =V22*V19*EXP(V25)/(V22*V19*EXP(V25)+ABS(V21/(1-V19)*W20)) -> 0.07171314741 | W24: =1-V24 -> 0.9282868526
V25: 0
B27: 0.057
R35: x
G43: =COUNT(B46:BL46) -> 63
A45: Start | B45: -0.02 | D45: End | E45: 0.05 | G45: 62
A46: Strikes | B46: =$B$45 -> -0.02 | C46: =B46+($E$45-$B$45)/$G$45 -> -0.01887096774 | D46: =C46+($E$45-$B$45)/$G$45 -> -0.01774193548 | E46: -0.01661290323 | F46: -0.01548387097 | G46: -0.01435483871 | H46: -0.01322580645 | I46: -0.01209677419 | J46: -0.01096774194 | K46: -0.009838709677 | L46: -0.008709677419 | M46: -0.007580645161 | N46: -0.006451612903 | O46: -0.005322580645 | P46: -0.004193548387 | Q46: -0.003064516129 | R46: -0.001935483871 | S46: -0.0008064516129 | T46: 0.0003225806452 | U46: 0.001451612903 | V46: 0.002580645161 | W46: 0.003709677419 | X46: 0.004838709677 | Y46: 0.005967741935 | Z46: 0.007096774194 | AA46: 0.008225806452 | AB46: 0.00935483871 | AC46: 0.01048387097 | AD46: 0.01161290323 | AE46: 0.01274193548 | AF46: 0.01387096774 | AG46: 0.015 | AH46: 0.01612903226 | AI46: 0.01725806452 | AJ46: 0.01838709677 | AK46: 0.01951612903 | AL46: 0.02064516129 | AM46: 0.02177419355 | AN46: 0.02290322581 | AO46: 0.02403225806 | AP46: 0.02516129032 | AQ46: 0.02629032258 | AR46: 0.02741935484 | AS46: 0.0285483871 | AT46: 0.02967741935 | AU46: 0.03080645161 | AV46: 0.03193548387 | AW46: 0.03306451613 | AX46: 0.03419354839 | AY46: 0.03532258065 | AZ46: 0.0364516129 | BA46: 0.03758064516 | BB46: 0.03870967742 | BC46: 0.03983870968 | BD46: 0.04096774194 | BE46: 0.04209677419 | BF46: 0.04322580645 | BG46: 0.04435483871 | BH46: 0.04548387097 | BI46: 0.04661290323 | BJ46: 0.04774193548 | BK46: 0.04887096774 | BL46: 0.05
A47: SABR Vol | B47: =VOLSABR_H_N($B$4,B46,$B$6,0,$B$10,0,$D$10,$E$10) -> 0.005006996319 | C47: =VOLSABR_H_N($B$4,C46,$B$6,0,$B$10,0,$D$10,$E$10) -> 0.004844802935 | D47: =VOLSABR_H_N($B$4,D46,$B$6,0,$B$10,0,$D$10,$E$10) -> 0.004681009402 | E47: 0.004515516476 | F47: 0.004348214729 | G47: 0.004178983318 | H47: 0.004007688709 | I47: 0.00383418346 | J47: 0.00365830531 | K47: 0.003479877074 | L47: 0.003298708333 | M47: 0.003114600973 | N47: 0.002927362851 | O47: 0.002736838831 | P47: 0.002542980011 | Q47: 0.002346000501 | R47: 0.002146745511 | S47: 0.001947597527 | T47: 0.001754788416 | U47: 0.00158397769 | V47: 0.001468328818 | W47: 0.001445432092 | X47: 0.001510549246 | Y47: 0.001626544638 | Z47: 0.001765764815 | AA47: 0.001914800493 | AB47: 0.002067611499 | AC47: 0.002221406104 | AD47: 0.002374847868 | AE47: 0.002527287069 | AF47: 0.002678414938 | AG47: 0.002828098913 | AH47: 0.002976299936 | AI47: 0.003123029085 | AJ47: 0.003268324032 | AK47: 0.00341223592 | AL47: 0.003554821935 | AM47: 0.003696141068 | AN47: 0.003836251708 | AO47: 0.003975210318 | AP47: 0.004113070733 | AQ47: 0.00424988385 | AR47: 0.004385697535 | AS47: 0.004520556662 | AT47: 0.00465450323 | AU47: 0.00478757651 | AV47: 0.004919813222 | AW47: 0.005051247708 | AX47: 0.005181912105 | AY47: 0.005311836513 | AZ47: 0.00544104915 | BA47: 0.005569576495 | BB47: 0.005697443427 | BC47: 0.005824673344 | BD47: 0.005951288282 | BE47: 0.006077309013 | BF47: 0.006202755144 | BG47: 0.006327645202 | BH47: 0.006451996712 | BI47: 0.006575826273 | BJ47: 0.006699149619 | BK47: 0.006821981684 | BL47: 0.006944336656
A50: SABR Normal Vol | B50: =VOLSABR_H_N($B$4,B46,$B$6,0,$B$12,0,$D$12,$E$12) -> 0.004511507203 | C50: =VOLSABR_H_N($B$4,C46,$B$6,0,$B$12,0,$D$12,$E$12) -> 0.004332142875 | D50: 0.004151165163 | E50: 0.003968454029 | F50: 0.003783872523 | G50: 0.003597263139 | H50: 0.003408443086 | I50: 0.003217198027 | J50: 0.003023273648 | K50: 0.002826364032 | L50: 0.002626095214 | M50: 0.002422001204 | N50: 0.002213487709 | O50: 0.001999774784 | P50: 0.001779800972 | Q50: 0.001552051359 | R50: 0.001314218552 | S50: 0.001062439398 | T50: 0.0007891917633 | U50: 0.0004751480531 | V50: 0.0002227591577 | W50: 0.0004054008097 | X50: 0.0005836728703 | Y50: 0.0007525491309 | Z50: 0.0009147117166 | AA50: 0.001071835419 | AB50: 0.001224987692 | AC50: 0.0013748933 | AD50: 0.001522071022 | AE50: 0.001666907937 | AF50: 0.001809702502 | AG50: 0.001950691007 | AH50: 0.002090064627 | AI50: 0.002227980853 | AJ50: 0.002364571429 | AK50: 0.002499948003 | AL50: 0.002634206274 | AM50: 0.002767429083 | AN50: 0.002899688767 | AO50: 0.003031048977 | AP50: 0.003161566114 | AQ50: 0.003291290461 | AR50: 0.003420267098 | AS50: 0.003548536649 | AT50: 0.00367613589 | AU50: 0.003803098255 | AV50: 0.00392945426 | AW50: 0.004055231856 | AX50: 0.004180456731 | AY50: 0.004305152563 | AZ50: 0.004429341246 | BA50: 0.004553043072 | BB50: 0.004676276899 | BC50: 0.004799060292 | BD50: 0.004921409649 | BE50: 0.005043340308 | BF50: 0.005164866646 | BG50: 0.00528600216 | BH50: 0.005406759547 | BI50: 0.005527150771 | BJ50: 0.005647187117 | BK50: 0.005766879255 | BL50: 0.005886237276
A51: SABR Free Normal Vol | B51: =VOLSABR_H_N_F($B$4,B46,$B$6,0,$B$11,$C$11,$D$11,$E$11) -> 0.00142875485 | C51: 0.001359903393 | D51: =VOLSABR_H_N_F($B$4,D46,$B$6,0,$B$11,$C$11,$D$11,$E$11) -> 0.001290863447 | E51: =VOLSABR_H_N_F($B$4,E46,$B$6,0,$B$11,$C$11,$D$11,$E$11) -> 0.001221625852 | F51: 0.001152180652 | G51: 0.001082517021 | H51: 0.001012623199 | I51: 0.0009424864592 | J51: 0.0008720931476 | K51: 0.0008014288605 | L51: 0.0007304789418 | M51: 0.0006592296521 | N51: 0.000587670864 | O51: 0.0005158024423 | P51: 0.0004436505098 | Q51: 0.0003713147079 | R51: 0.0002991410123 | S51: 0.0002287476529 | T51: 0.0001961722203 | U51: 0.0001874811596 | V51: 0.0004133150754 | W51: 0.0006155133624 | X51: 0.0007986078498 | Y51: 0.0009703537391 | Z51: 0.001134327746 | AA51: 0.001292514792 | AB51: 0.001446154637 | AC51: 0.001596085381 | AD51: 0.001742906481 | AE51: 0.001887065209 | AF51: 0.002028906416 | AG51: 0.002168703049 | AH51: 0.002306675825 | AI51: 0.002443006439 | AJ51: 0.002577846738 | AK51: 0.002711325275 | AL51: 0.002843552112 | AM51: 0.002974622403 | AN51: 0.00310461913 | AO51: 0.003233615217 | AP51: 0.003361675194 | AQ51: 0.003488856511 | AR51: 0.003615210607 | AS51: 0.00374078377 | AT51: 0.00386561785 | AU51: 0.003989750842 | AV51: 0.004113217378 | AW51: 0.004236049139 | AX51: 0.004358275203 | AY51: 0.004479922339 | AZ51: 0.004601015268 | BA51: 0.004721576873 | BB51: 0.004841628398 | BC51: 0.004961189603 | BD51: 0.005080278914 | BE51: 0.00519891355 | BF51: 0.005317109628 | BG51: 0.005434882266 | BH51: 0.00555224567 | BI51: 0.005669213207 | BJ51: 0.00578579748 | BK51: 0.005902010386 | BL51: 0.006017863172
A52: Mixed SABR | B52: =$F$11*B50+(1-$F$11)*B51 -> 0.003386302595 | C52: =$F$11*C50+(1-$F$11)*C51 -> 0.003247275464 | D52: 0.003107155037 | E52: 0.002965861745 | F52: 0.00282330499 | G52: 0.002679380806 | H52: 0.002533968827 | I52: 0.002386928305 | J52: 0.002238092765 | K52: 0.002087262694 | L52: 0.001934195275 | M52: 0.001778589587 | N52: 0.001620064561 | O52: 0.001458124879 | P52: 0.001292106053 | Q52: 0.001121082481 | R52: 0.00094371525 | S52: 0.0007581419109 | T52: 0.0005727396301 | U52: 0.000370149637 | V52: 0.0002923120676 | W52: 0.0004820918914 | X52: 0.0006621241379 | Y52: 0.0008320478129 | Z52: 0.0009948715675 | AA52: 0.00115238339 | AB52: 0.001305713627 | AC52: 0.001455628409 | AD52: 0.001602675964 | AE52: 0.001747265342 | AF52: 0.001889711931 | AG52: 0.002030265402 | AH52: 0.002169127714 | AI52: 0.002306465192 | AJ52: 0.002442416916 | AK52: 0.002577100707 | AL52: 0.002710617505 | AM52: 0.002843054645 | AN52: 0.002974488349 | AO52: 0.003104985655 | AP52: 0.003234605928 | AQ52: 0.003363402069 | AR52: 0.003491421478 | AS52: 0.003618706848 | AT52: 0.003745296805 | AU52: 0.003871226449 | AV52: 0.003996527798 | AW52: 0.004121230165 | AX52: 0.004245360473 | AY52: 0.004368943531 | AZ52: 0.004492002264 | BA52: 0.004614557909 | BB52: 0.004736630196 | BC52: 0.00485823749 | BD52: 0.004979396931 | BE52: 0.005100124542 | BF52: 0.005220435334 | BG52: 0.005340343399 | BH52: 0.005459861982 | BI52: 0.00557900356 | BJ52: 0.0056977799 | BK52: 0.005816202118 | BL52: 0.005934280728

Sheet SABR Smile Designer Mix All
A1: SABR Smile Designer Free
A3: Market | B3: EUR
A4: SwapRate | B4: 0.001 | E4: Implied Vol | F4: 0.6
A5: SwapMaturity | B5: 10 | E5: Normal Vol
A6: Option Maturity | B6: 10
A7: SABR
K8: Mode: | L8: Automatic
B9: a | C9: b | D9: r | E9: n | M9: s0
B10: 0.0013 | D10: -0.36 | E10: 0.5 | F10: 235 | G10: 73 | H10: 95 | I10: 420 | J10: 576
A11: CurrentValues from Curve | B11: =F10/10000 -> 0.0235 | C11: =G10/200 -> 0.365 | D11: =-1+H10/100 -> -0.05 | E11: =I10/1000 -> 0.42 | F11: =J10/1000 -> 0.576
A12: Normal SABR Params | B12: =F12/10000 -> 0.0058 | D12: =-1+H12/1000 -> -0.637 | E12: =I12/1000 -> 0.614 | F12: 58 | G12: 43 | H12: 363 | I12: 614
I15: Free Toggle (Controls the Free SABR) | N15: Normal Toggle (controls the normal SABR) | R15: Mix | S15: Moves Smile in between
I17: alpha | J17: beta | K17: rho | L17: nu | N17: alpha | O17: rho | P17: nu
B27: 0.057
I35: Scale | R35: x
I36: low | J36: =MIN(B50:BL52) -> 0.001425191996
I37: high | J37: =MAX(B50:BL52) -> 0.01141156467
G43: =COUNT(B46:BL46) -> 63
A45: Start | B45: -0.02 | D45: End | E45: 0.05 | G45: 62
A46: Strikes | B46: =$B$45 -> -0.02 | C46: =B46+($E$45-$B$45)/$G$45 -> -0.01887096774 | D46: =C46+($E$45-$B$45)/$G$45 -> -0.01774193548 | E46: -0.01661290323 | F46: -0.01548387097 | G46: -0.01435483871 | H46: -0.01322580645 | I46: -0.01209677419 | J46: -0.01096774194 | K46: -0.009838709677 | L46: -0.008709677419 | M46: -0.007580645161 | N46: -0.006451612903 | O46: -0.005322580645 | P46: -0.004193548387 | Q46: -0.003064516129 | R46: -0.001935483871 | S46: -0.0008064516129 | T46: 0.0003225806452 | U46: 0.001451612903 | V46: 0.002580645161 | W46: 0.003709677419 | X46: 0.004838709677 | Y46: 0.005967741935 | Z46: 0.007096774194 | AA46: 0.008225806452 | AB46: 0.00935483871 | AC46: 0.01048387097 | AD46: 0.01161290323 | AE46: 0.01274193548 | AF46: 0.01387096774 | AG46: 0.015 | AH46: 0.01612903226 | AI46: 0.01725806452 | AJ46: 0.01838709677 | AK46: 0.01951612903 | AL46: 0.02064516129 | AM46: 0.02177419355 | AN46: 0.02290322581 | AO46: 0.02403225806 | AP46: 0.02516129032 | AQ46: 0.02629032258 | AR46: 0.02741935484 | AS46: 0.0285483871 | AT46: 0.02967741935 | AU46: 0.03080645161 | AV46: 0.03193548387 | AW46: 0.03306451613 | AX46: 0.03419354839 | AY46: 0.03532258065 | AZ46: 0.0364516129 | BA46: 0.03758064516 | BB46: 0.03870967742 | BC46: 0.03983870968 | BD46: 0.04096774194 | BE46: 0.04209677419 | BF46: 0.04322580645 | BG46: 0.04435483871 | BH46: 0.04548387097 | BI46: 0.04661290323 | BJ46: 0.04774193548 | BK46: 0.04887096774 | BL46: 0.05
A47: SABR Vol | B47: =VOLSABR_H_N($B$4,B46,$B$6,0,$B$10,0,$D$10,$E$10) -> 0.004863418537 | C47: =VOLSABR_H_N($B$4,C46,$B$6,0,$B$10,0,$D$10,$E$10) -> 0.004699812722 | D47: =VOLSABR_H_N($B$4,D46,$B$6,0,$B$10,0,$D$10,$E$10) -> 0.004534519349 | E47: 0.004367430214 | F47: 0.004198425845 | G47: 0.004027374221 | H47: 0.003854129544 | I47: 0.003678531276 | J47: 0.003500403897 | K47: 0.003319558318 | L47: 0.003135796824 | M47: 0.002948925465 | N47: 0.002758782373 | O47: 0.002565300905 | P47: 0.002368652214 | Q47: 0.00216957837 | R47: 0.001970207933 | S47: 0.001776132863 | T47: 0.001601506019 | U47: 0.001477349753 | V47: 0.00144300776 | W47: 0.001499835522 | X47: 0.001611746408 | Y47: 0.001749192429 | Z47: 0.001897501854 | AA47: 0.002050062179 | AB47: 0.00220383023 | AC47: 0.00235735407 | AD47: 0.002509927993 | AE47: 0.002661214814 | AF47: 0.002811067055 | AG47: 0.002959437679 | AH47: 0.003106333492 | AI47: 0.003251789931 | AJ47: 0.003395857055 | AK47: 0.00353859162 | AL47: 0.003680052558 | AM47: 0.003820298411 | AN47: 0.003959385903 | AO47: 0.004097369193 | AP47: 0.004234299521 | AQ47: 0.0043702251 | AR47: 0.004505191142 | AS47: 0.004639239965 | AT47: 0.004772411144 | AU47: 0.004904741683 | AV47: 0.005036266185 | AW47: 0.005167017032 | AX47: 0.005297024549 | AY47: 0.005426317159 | AZ47: 0.005554921535 | BA47: 0.005682862731 | BB47: 0.00581016431 | BC47: 0.005936848457 | BD47: 0.006062936085 | BE47: 0.006188446927 | BF47: 0.006313399631 | BG47: 0.006437811832 | BH47: 0.006561700232 | BI47: 0.006685080661 | BJ47: 0.006807968141 | BK47: 0.006930376942 | BL47: 0.007052320632
A50: SABR Normal Vol | B50: =VOLSABR_H_N($B$4,B46,$B$6,0,$B$12,0,$D$12,$E$12) -> 0.01141156467 | C50: =VOLSABR_H_N($B$4,C46,$B$6,0,$B$12,0,$D$12,$E$12) -> 0.01116002672 | D50: 0.0109066466 | E50: 0.01065138861 | F50: 0.01039422371 | G50: 0.0101351325 | H50: 0.009874109296 | I50: 0.009611167674 | J50: 0.009346348076 | K50: 0.009079728262 | L50: 0.008811437753 | M50: 0.008541677872 | N50: 0.008270749672 | O50: 0.007999092945 | P50: 0.007727340714 | Q50: 0.007456394963 | R50: 0.007187530593 | S50: 0.00692253436 | T50: 0.006663881248 | U50: 0.006414936424 | V50: 0.00618013747 | W50: 0.005965051085 | X50: 0.005776124809 | Y50: 0.005619942158 | Z50: 0.005501973622 | AA50: 0.005425224923 | AB50: 0.005389486854 | AC50: 0.005391625543 | AD50: 0.005426664256 | AE50: 0.005489007387 | AF50: 0.005573327752 | AG50: 0.005675011628 | AH50: 0.005790277533 | AI50: 0.005916121004 | AJ50: 0.006050193074 | AK50: 0.006190669658 | AL50: 0.006336135745 | AM50: 0.006485491036 | AN50: 0.006637876223 | AO50: 0.00679261659 | AP50: 0.006949179278 | AQ50: 0.007107140981 | AR50: 0.007266163512 | AS50: 0.007425975239 | AT50: 0.007586356914 | AU50: 0.007747130786 | AV50: 0.00790815219 | AW50: 0.008069302997 | AX50: 0.008230486488 | AY50: 0.008391623308 | AZ50: 0.008552648259 | BA50: 0.008713507746 | BB50: 0.008874157712 | BC50: 0.009034561989 | BD50: 0.009194690947 | BE50: 0.009354520396 | BF50: 0.009514030691 | BG50: 0.009673205988 | BH50: 0.009832033634 | BI50: 0.00999050366 | BJ50: 0.01014860836 | BK50: 0.01030634192 | BL50: 0.01046370017
A51: SABR Free Normal Vol | B51: =VOLSABR_H_N_F($B$4,B46,$B$6,0,$B$11,$C$11,$D$11,$E$11) -> 0.006044402385 | C51: 0.005822329235 | D51: =VOLSABR_H_N_F($B$4,D46,$B$6,0,$B$11,$C$11,$D$11,$E$11) -> 0.005597364414 | E51: =VOLSABR_H_N_F($B$4,E46,$B$6,0,$B$11,$C$11,$D$11,$E$11) -> 0.005369257053 | F51: 0.005137715753 | G51: 0.004902398661 | H51: 0.004662900191 | I51: 0.004418732899 | J51: 0.004169302172 | K51: 0.003913869981 | L51: 0.003651501364 | M51: 0.003380982706 | N51: 0.00310069181 | O51: 0.002808381753 | P51: 0.002500803395 | Q51: 0.002173022882 | R51: 0.001817309261 | S51: 0.001425191996 | T51: 0.001755514218 | U51: 0.002258322501 | V51: 0.002588709438 | W51: 0.002873452333 | X51: 0.00313780241 | Y51: 0.00339057253 | Z51: 0.003635579027 | AA51: 0.003874734778 | AB51: 0.004109124366 | AC51: 0.004339433661 | AD51: 0.004566138777 | AE51: 0.004789595858 | AF51: 0.005010086771 | AG51: 0.005227843907 | AH51: 0.005443064518 | AI51: 0.005655919529 | AJ51: 0.005866559276 | AK51: 0.006075117455 | AL51: 0.006281713966 | AM51: 0.006486457051 | AN51: 0.006689444957 | AO51: 0.006890767263 | AP51: 0.00709050596 | AQ51: 0.007288736353 | AR51: 0.007485527816 | AS51: 0.007680944438 | AT51: 0.007875045573 | AU51: 0.008067886322 | AV51: 0.008259517948 | AW51: 0.008449988242 | AX51: 0.008639341844 | AY51: 0.008827620528 | AZ51: 0.009014863449 | BA51: 0.009201107374 | BB51: 0.009386386875 | BC51: 0.009570734513 | BD51: 0.009754180995 | BE51: 0.009936755321 | BF51: 0.01011848491 | BG51: 0.01029939574 | BH51: 0.0104795124 | BI51: 0.01065885826 | BJ51: 0.0108374555 | BK51: 0.01101532522 | BL51: 0.01119248751
A52: Mixed SABR | B52: =$F$11*B50+(1-$F$11)*B51 -> 0.009135887861 | C52: =$F$11*C50+(1-$F$11)*C51 -> 0.008896842989 | D52: 0.008655510952 | E52: 0.008411764827 | F52: 0.008165464334 | G52: 0.007916453351 | H52: 0.007664556635 | I52: 0.007409575329 | J52: 0.007151280613 | K52: 0.006889404351 | L52: 0.006623624724 | M52: 0.006353543122 | N52: 0.006078645138 | O52: 0.0057982314 | P52: 0.005511288891 | Q52: 0.005216245201 | R52: 0.004910556748 | S52: 0.004591661197 | T52: 0.004582733627 | U52: 0.00465253212 | V52: 0.004657371984 | W52: 0.004654213214 | X52: 0.004657476112 | Y52: 0.004674689435 | Z52: 0.004710622314 | AA52: 0.004767817102 | AB52: 0.004846613159 | AC52: 0.004945496185 | AD52: 0.005061801453 | AE52: 0.005192456899 | AF52: 0.005334513576 | AG52: 0.005485412514 | AH52: 0.005643059214 | AI52: 0.005805795578 | AJ52: 0.005972332344 | AK52: 0.006141675524 | AL52: 0.006313060911 | AM52: 0.006485900626 | AN52: 0.006659741366 | AO52: 0.006834232476 | AP52: 0.007009101791 | AQ52: 0.007184137419 | AR52: 0.007359173977 | AS52: 0.007534082179 | AT52: 0.007708760905 | AU52: 0.007883131133 | AV52: 0.008057131271 | AW52: 0.008230713541 | AX52: 0.008403841159 | AY52: 0.008576486129 | AZ52: 0.0087486275 | BA52: 0.008920249988 | BB52: 0.009091342877 | BC52: 0.009261899139 | BD52: 0.009431914727 | BE52: 0.009601388004 | BF52: 0.009770319282 | BG52: 0.009938710442 | BH52: 0.01010656463 | BI52: 0.01027388601 | BJ52: 0.01044067954 | BK52: 0.01060695084 | BL52: 0.010772706
B55: 0.004
A57: SR - x% | B57: =VOLSABR_H_N_F($C$61-$B$55,B46,$C$63,0,$C$68,$D$68,$E$68,$F$68) -> 0.003435293774 | C57: =VOLSABR_H_N_F($C$61-$B$55,C46,$C$63,0,$C$68,$D$68,$E$68,$F$68) -> 0.003308819445 | D57: 0.003181842172 | E57: 0.003054350917 | F57: 0.002926336644 | G57: 0.002797793559 | H57: 0.00266872101 | I57: 0.002539126418 | J57: 0.002409029928 | K57: 0.002278471969 | L57: 0.002147526004 | M57: 0.002016320966 | N57: 0.001885083039 | O57: 0.001754219339 | P57: 0.00162450313 | Q57: 0.00149754715 | R57: 0.001377325396 | S57: 0.00127789894 | T57: 0.001334684985 | U57: 0.001289705068 | V57: 0.001242042705 | W57: 0.001236708205 | X57: 0.00131717417 | Y57: 0.001499715583 | Z57: 0.001698563058 | AA57: 0.001926168792 | AB57: 0.002155410147 | AC57: 0.002381979105 | AD57: 0.002604557739 | AE57: 0.002822899824 | AF57: 0.003037144531 | AG57: 0.003247559707 | AH57: 0.003454442431 | AI57: 0.003658080547 | AJ57: 0.003858738915 | AK57: 0.004056655885 | AL57: 0.004252043947 | AM57: 0.004445091944 | AN57: 0.004635967732 | AO57: 0.004824820791 | AP57: 0.005011784612 | AQ57: 0.005196978795 | AR57: 0.005380510868 | AS57: 0.005562477847 | AT57: 0.005742967561 | AU57: 0.005922059796 | AV57: 0.006099827262 | AW57: 0.006276336429 | AX57: 0.006451648239 | AY57: 0.006625818724 | AZ57: 0.006798899539 | BA57: 0.006970938422 | BB57: 0.007141979598 | BC57: 0.007312064132 | BD57: 0.007481230233 | BE57: 0.007649513528 | BF57: 0.0078169473 | BG57: 0.007983562701 | BH57: 0.008149388937 | BI57: 0.008314453437 | BJ57: 0.008478782001 | BK57: 0.008642398935 | BL57: 0.008805327168
A58: SR | B58: =VOLSABR_H_N_F($C$61,B46,$C$63,0,$C$68,$D$68,$E$68,$F$68) -> 0.003871413588 | C58: =VOLSABR_H_N_F($C$61,C46,$C$63,0,$C$68,$D$68,$E$68,$F$68) -> 0.003748941994 | D58: 0.003626163807 | E58: 0.0035030882 | F58: 0.00337972966 | G58: 0.003256110006 | H58: 0.003132261303 | I58: 0.003008230151 | J58: 0.00288408417 | K58: 0.002759922124 | L58: 0.002635890277 | M58: 0.002512210098 | N58: 0.002389227896 | O58: 0.002267510573 | P58: 0.002148049627 | Q58: 0.002032762545 | R58: 0.001926039395 | S58: 0.001842232052 | T58: 0.001901534394 | U58: 0.001846162428 | V58: 0.001767919598 | W58: 0.001685344821 | X58: 0.001608477703 | Y58: 0.001550715181 | Z58: 0.001533717389 | AA58: 0.001584103579 | AB58: 0.001710326963 | AC58: 0.001890329019 | AD58: 0.00209667109 | AE58: 0.002312912577 | AF58: 0.00253140046 | AG58: 0.002748829129 | AH58: 0.002963830149 | AI58: 0.003175895514 | AJ58: 0.003384905269 | AK58: 0.003590914678 | AL58: 0.003794055187 | AM58: 0.00399448716 | AN58: 0.004192377131 | AO58: 0.004387886998 | AP58: 0.004581169194 | AQ58: 0.004772364874 | AR58: 0.004961603618 | AS58: 0.005149003868 | AT58: 0.005334673702 | AU58: 0.005518711728 | AV58: 0.005701207984 | AW58: 0.005882244802 | AX58: 0.006061897599 | AY58: 0.006240235591 | AZ58: 0.00641732244 | BA58: 0.006593216818 | BB58: 0.006767972918 | BC58: 0.006941640895 | BD58: 0.007114267267 | BE58: 0.007285895264 | BF58: 0.007456565133 | BG58: 0.007626314418 | BH58: 0.007795178204 | BI58: 0.007963189332 | BJ58: 0.008130378594 | BK58: 0.008296774909 | BL58: 0.008462405473
A59: SR + x% | B59: =VOLSABR_H_N_F($C$61+$B$55,B46,$C$63,0,$C$68,$D$68,$E$68,$F$68) -> 0.004307417601 | C59: =VOLSABR_H_N_F($C$61+$B$55,C46,$C$63,0,$C$68,$D$68,$E$68,$F$68) -> 0.004188173005 | D59: 0.004068763276 | E59: 0.00394921083 | F59: 0.003829545388 | G59: 0.003709806436 | H59: 0.003590046688 | I59: 0.003470337106 | J59: 0.003350774354 | K59: 0.003231492227 | L59: 0.003112679814 | M59: 0.002994611739 | N59: 0.002877701423 | O59: 0.00276260209 | P59: 0.002650418258 | Q59: 0.002543216281 | R59: 0.002445569802 | S59: 0.002371889239 | T59: 0.00243608919 | U59: 0.002382307454 | V59: 0.00230294677 | W59: 0.002214066492 | X59: 0.002120784282 | Y59: 0.002026706378 | Z59: 0.001935899156 | AA59: 0.001854362884 | AB59: 0.001791977869 | AC59: 0.001764580583 | AD59: 0.001792184165 | AE59: 0.001886374305 | AF59: 0.002037399393 | AG59: 0.002223550216 | AH59: 0.002427045294 | AI59: 0.002637652368 | AJ59: 0.00285019736 | AK59: 0.003062170551 | AL59: 0.003272385786 | AM59: 0.003480314081 | AN59: 0.003685757117 | AO59: 0.003888684374 | AP59: 0.004089149805 | AQ59: 0.004287248208 | AR59: 0.00448309201 | AS59: 0.004676798836 | AT59: 0.00486848492 | AU59: 0.005058261725 | AV59: 0.005246234348 | AW59: 0.005432500926 | AX59: 0.00561715259 | AY59: 0.005800273709 | AZ59: 0.005981942291 | BA59: 0.006162230433 | BB59: 0.0063412048 | BC59: 0.006518927082 | BD59: 0.006695454435 | BE59: 0.00687083988 | BF59: 0.007045132679 | BG59: 0.007218378666 | BH59: 0.007390620555 | BI59: 0.007561898216 | BJ59: 0.007732248918 | BK59: 0.007901707555 | BL59: 0.008070306845
B60: Market | C60: EUR
B61: SwapRate | C61: 0.01 | F61: Implied Vol | G61: 0.6
B62: SwapMaturity | C62: 10 | F62: Normal Vol
B63: Option Maturity | C63: 10
B64: SABR
C67: a | D67: b | E67: r | F67: n | G67: 205
B68: CurrentValues from Curve | C68: 0.01 | D68: 0.4 | E68: 0.5 | F68: 0.45
G69: 58

Sheet SABR Smile Designer Normal
A1: SABR Smile Designer Free
A3: Market | B3: EUR
A4: SwapRate | B4: 0.001 | E4: Implied Vol | F4: 0.6
A5: SwapMaturity | B5: 10 | E5: Normal Vol
A6: Option Maturity | B6: 10
A7: SABR
K8: Mode: | L8: Automatic
B9: a | C9: b | D9: r | E9: n | M9: s0
B10: 0.0013 | D10: -0.36 | E10: 0.5 | F10: 3500 | G10: 80 | H10: 166 | I10: 35 | J10: 511
A11: CurrentValues from Curve | B11: =F10/10000 -> 0.35 | C11: =G10/200 -> 0.4 | D11: =-1+H10/100 -> 0.66 | E11: =I10/1000 -> 0.035 | F11: =J10/1000 -> 0.511
A12: Normal SABR Params | B12: =F12/10000 -> 0.0235 | D12: =-1+H12/1000 -> 0.415 | E12: =I12/1000 -> 0.52 | F12: 235 | G12: 43 | H12: 1415 | I12: 520
B13: 0.0294 | D13: 0.05 | E13: 0.508
I15: Free Toggle | N15: Normal Toggle
I17: alpha | J17: beta | K17: rho | L17: nu | N17: alpha | O17: rho | P17: nu
B27: 0.057
I35: Scale
I36: low | J36: =MIN(B51:BL51) -> 0.01346302111 | O36: =MIN(B50:BQ50) -> 0.02556840319
I37: high | J37: =MAX(B51:BL51) -> 0.07606441013 | O37: =MAX(B50:BQ50) -> 0.03572414512
G43: =COUNT(B46:BL46) -> 63
A45: Start | B45: -0.1 | D45: End | E45: 0.05 | G45: 62
A46: Strikes | B46: =$B$45 -> -0.1 | C46: =B46+($E$45-$B$45)/$G$45 -> -0.09758064516 | D46: =C46+($E$45-$B$45)/$G$45 -> -0.09516129032 | E46: -0.09274193548 | F46: -0.09032258065 | G46: -0.08790322581 | H46: -0.08548387097 | I46: -0.08306451613 | J46: -0.08064516129 | K46: -0.07822580645 | L46: -0.07580645161 | M46: -0.07338709677 | N46: -0.07096774194 | O46: -0.0685483871 | P46: -0.06612903226 | Q46: -0.06370967742 | R46: -0.06129032258 | S46: -0.05887096774 | T46: -0.0564516129 | U46: -0.05403225806 | V46: -0.05161290323 | W46: -0.04919354839 | X46: -0.04677419355 | Y46: -0.04435483871 | Z46: -0.04193548387 | AA46: -0.03951612903 | AB46: -0.03709677419 | AC46: -0.03467741935 | AD46: -0.03225806452 | AE46: -0.02983870968 | AF46: -0.02741935484 | AG46: -0.025 | AH46: -0.02258064516 | AI46: -0.02016129032 | AJ46: -0.01774193548 | AK46: -0.01532258065 | AL46: -0.01290322581 | AM46: -0.01048387097 | AN46: -0.008064516129 | AO46: -0.00564516129 | AP46: -0.003225806452 | AQ46: -0.0008064516129 | AR46: 0.001612903226 | AS46: 0.004032258065 | AT46: 0.006451612903 | AU46: 0.008870967742 | AV46: 0.01129032258 | AW46: 0.01370967742 | AX46: 0.01612903226 | AY46: 0.0185483871 | AZ46: 0.02096774194 | BA46: 0.02338709677 | BB46: 0.02580645161 | BC46: 0.02822580645 | BD46: 0.03064516129 | BE46: 0.03306451613 | BF46: 0.03548387097 | BG46: 0.03790322581 | BH46: 0.04032258065 | BI46: 0.04274193548 | BJ46: 0.04516129032 | BK46: 0.04758064516 | BL46: 0.05
A47: SABR Vol | B47: =VOLSABR_H_N($B$4,B46,$B$6,0,$B$10,0,$D$10,$E$10) -> 0.01454521642 | C47: =VOLSABR_H_N($B$4,C46,$B$6,0,$B$10,0,$D$10,$E$10) -> 0.01428138057 | D47: =VOLSABR_H_N($B$4,D46,$B$6,0,$B$10,0,$D$10,$E$10) -> 0.01401644855 | E47: 0.01375038497 | F47: 0.01348315237 | G47: 0.01321471104 | H47: 0.0129450188 | I47: 0.0126740308 | J47: 0.01240169925 | K47: 0.01212797317 | L47: 0.01185279801 | M47: 0.01157611537 | N47: 0.01129786253 | O47: 0.01101797202 | P47: 0.01073637108 | Q47: 0.01045298104 | R47: 0.01016771659 | S47: 0.009880485026 | T47: 0.00959118523 | U47: 0.009299706578 | V47: 0.009005927607 | W47: 0.008709714445 | X47: 0.008410918939 | Y47: 0.008109376391 | Z47: 0.007804902821 | AA47: 0.007497291618 | AB47: 0.007186309408 | AC47: 0.006871690912 | AD47: 0.00655313247 | AE47: 0.00623028381 | AF47: 0.005902737467 | AG47: 0.005570015016 | AH47: 0.005231548983 | AI47: 0.004886658877 | AJ47: 0.004534519349 | AK47: 0.004174118486 | AL47: 0.003804206171 | AM47: 0.00342324291 | AN47: 0.003029405615 | AO47: 0.002620918737 | AP47: 0.002198108811 | AQ47: 0.001776132863 | AR47: 0.00146627064 | AS47: 0.001527814007 | AT47: 0.001811927238 | AU47: 0.002137898187 | AV47: 0.002466456652 | AW47: 0.002789749944 | AX47: 0.003106333492 | AY47: 0.003416327926 | AZ47: 0.003720244267 | BA47: 0.00401865375 | BB47: 0.004312091344 | BC47: 0.004601031538 | BD47: 0.004885887452 | BE47: 0.005167017032 | BF47: 0.005444730748 | BG47: 0.005719298883 | BH47: 0.005990957878 | BI47: 0.006259915662 | BJ47: 0.006526356057 | BK47: 0.006790442418 | BL47: 0.007052320632
A50: SABR Normal Vol | B50: =VOLSABR_H_N($B$4,B46,$B$6,0,$B$12,0,$D$12,$E$12) -> 0.03251159702 | C50: =VOLSABR_H_N($B$4,C46,$B$6,0,$B$12,0,$D$12,$E$12) -> 0.03218736202 | D50: 0.0318649297 | E50: 0.03154451657 | F50: 0.03122636161 | G50: 0.03091072875 | H50: 0.03059790971 | I50: 0.03028822706 | J50: 0.02998203762 | K50: 0.02967973626 | L50: 0.02938175999 | M50: 0.0290885925 | N50: 0.02880076899 | O50: 0.02851888136 | P50: 0.0282435837 | Q50: 0.02797559795 | R50: 0.02771571954 | S50: 0.02746482291 | T50: 0.02722386654 | U50: 0.02699389701 | V50: 0.0267760517 | W50: 0.02657155929 | X50: 0.02638173734 | Y50: 0.02620798597 | Z50: 0.0260517765 | AA50: 0.02591463419 | AB50: 0.0257981139 | AC50: 0.02570376835 | AD50: 0.02563310874 | AE50: 0.02558755868 | AF50: 0.02556840319 | AG50: 0.02557673572 | AH50: 0.02561340713 | AI50: 0.02567898128 | AJ50: 0.02577370171 | AK50: 0.02589747333 | AL50: 0.02604986147 | AM50: 0.02623010869 | AN50: 0.02643716761 | AO50: 0.02666974633 | AP50: 0.02692636185 | AQ50: 0.02720539658 | AR50: 0.02750515341 | AS50: 0.02782390599 | AT50: 0.02815994161 | AU50: 0.02851159582 | AV50: 0.02887727844 | AW50: 0.02925549164 | AX50: 0.02964484114 | AY50: 0.03004404158 | AZ50: 0.0304519176 | BA50: 0.03086740151 | BB50: 0.03128952864 | BC50: 0.0317174313 | BD50: 0.03215033178 | BE50: 0.03258753505 | BF50: 0.03302842134 | BG50: 0.03347243905 | BH50: 0.03391909788 | BI50: 0.03436796258 | BJ50: 0.03481864703 | BK50: 0.03527080896 | BL50: 0.03572414512
A51: SABR Free Normal Vol | B51: =VOLSABR_H_N_F($B$4,B46,$B$6,0,$B$11,$C$11,$D$11,$E$11) -> 0.07305021154 | C51: 0.07224103152 | D51: =VOLSABR_H_N_F($B$4,D46,$B$6,0,$B$11,$C$11,$D$11,$E$11) -> 0.07141939625 | E51: =VOLSABR_H_N_F($B$4,E46,$B$6,0,$B$11,$C$11,$D$11,$E$11) -> 0.07058480719 | F51: 0.06973673281 | G51: 0.06887460554 | H51: 0.06799781825 | I51: 0.0671057204 | J51: 0.06619761362 | K51: 0.06527274674 | L51: 0.06433031011 | M51: 0.06336942915 | N51: 0.06238915696 | O51: 0.06138846585 | P51: 0.06036623744 | Q51: 0.05932125139 | R51: 0.05825217205 | S51: 0.05715753299 | T51: 0.05603571866 | U51: 0.05488494277 | V51: 0.05370322241 | W51: 0.05248834707 | X51: 0.05123784117 | Y51: 0.04994891835 | Z51: 0.0486184254 | AA51: 0.04724277263 | AB51: 0.04581784674 | AC51: 0.04433890047 | AD51: 0.0428004113 | AE51: 0.04119589819 | AF51: 0.03951768064 | AG51: 0.03775655755 | AH51: 0.03590137273 | AI51: 0.03393841922 | AJ51: 0.03185061444 | AK51: 0.0296163594 | AL51: 0.0272080148 | AM51: 0.02459017119 | AN51: 0.02171933574 | AO51: 0.01855544133 | AP51: 0.01516749933 | AQ51: 0.01346302111 | AR51: 0.03518521848 | AS51: 0.04040530003 | AT51: 0.04423381748 | AU51: 0.04739159044 | AV51: 0.05013310621 | AW51: 0.05258400252 | AX51: 0.0548173064 | AY51: 0.05687991351 | AZ51: 0.05880405372 | BA51: 0.06061300016 | BB51: 0.06232420411 | BC51: 0.0639511466 | BD51: 0.06550449578 | BE51: 0.0669928638 | BF51: 0.06842332069 | BG51: 0.06980175409 | BH51: 0.07113312801 | BI51: 0.07242167306 | BJ51: 0.07367102917 | BK51: 0.07488435456 | BL51: 0.07606441013
A52: Mixed SABR | B52: =$F$11*B50+(1-$F$11)*B51 -> 0.05233497952 | C52: =$F$11*C50+(1-$F$11)*C51 -> 0.05177360641 | D52: 0.05120706384 | E52: 0.05063521868 | F52: 0.05005793312 | G52: 0.0494750645 | H52: 0.04888646499 | I52: 0.0482919813 | J52: 0.04769145429 | K52: 0.04708471838 | L52: 0.046471601 | M52: 0.04585192162 | N52: 0.04522549071 | O52: 0.04459210817 | P52: 0.04395156138 | Q52: 0.04330362248 | R52: 0.04264804482 | S52: 0.04198455814 | T52: 0.04131286223 | U52: 0.04063261839 | V52: 0.03994343818 | W52: 0.03924486852 | X52: 0.03853637212 | Y52: 0.0378173019 | Z52: 0.03708686781 | AA52: 0.03634409389 | AB52: 0.03558776326 | AC52: 0.03481634796 | AD52: 0.03402791969 | AE52: 0.0332200367 | AF52: 0.03238959987 | AG52: 0.03153266859 | AH52: 0.03064422231 | AI52: 0.02971784643 | AJ52: 0.02874531203 | AK52: 0.02771600862 | AL52: 0.02661619845 | AM52: 0.02542817925 | AN52: 0.02413014782 | AO52: 0.02270185119 | AP52: 0.02117627808 | AQ52: 0.02048537497 | AR52: 0.03126070523 | AS52: 0.03397620768 | AT52: 0.03602006691 | AU52: 0.03774391319 | AV52: 0.03927137822 | AW52: 0.04066313346 | AX52: 0.04195417665 | AY52: 0.04316678295 | AZ52: 0.04431611217 | BA52: 0.04541299925 | BB52: 0.04646548494 | BC52: 0.04747971808 | BD52: 0.04846051798 | BE52: 0.04941174081 | BF52: 0.05033652712 | BG52: 0.0512374741 | BH52: 0.05211675862 | BI52: 0.052976227 | BJ52: 0.05381746189 | BK52: 0.05464183275 | BL52: 0.05545053471

Sheet Swaption Vol Curve
A1: EUR Swaption Volatility Curve
A3: years | C3: 1 | D3: =1+C3 -> 2 | E3: 3 | F3: 4 | G3: 5 | H3: 6 | I3: 7 | J3: 8 | K3: 9 | L3: 10 | M3: 15 | N3: 20 | O3: 25 | P3: 30
B4: months | C4: =C3*12 -> 12 | D4: 24 | E4: 36 | F4: 48 | G4: 60 | H4: 72 | I4: 84 | J4: 96 | K4: 108 | L4: 120 | M4: 180 | N4: 240 | O4: 300 | P4: 360
A5: 0.25 | B5: =A5*12 -> 3 | C5: 8.5 | D5: 10.5 | E5: 11.5 | F5: 12 | G5: 12.3 | H5: 12.2 | I5: 12.2 | J5: 12.1 | K5: 12 | L5: 11.9 | M5: 11.6 | N5: 11.3 | O5: 11.2 | P5: 11.1
A6: 0.5 | B6: 6 | C6: 10.3 | D6: 11.5 | E6: 12.2 | F6: 12.6 | G6: 12.8 | H6: 12.8 | I6: 12.8 | J6: 12.7 | K6: 12.6 | L6: 12.4 | M6: 12 | N6: 11.7 | O6: 11.5 | P6: 11.5
A7: 0.75 | B7: 9 | C7: 11.3 | D7: 12.1 | E7: 12.7 | F7: 12.9 | G7: 13 | H7: 13 | I7: 12.9 | J7: 12.8 | K7: 12.7 | L7: 12.6 | M7: 12.2 | N7: 11.9 | O7: 11.7 | P7: 11.6
A8: 1 | B8: 12 | C8: 12.3 | D8: 12.7 | E8: 13 | F8: 13.2 | G8: 13.2 | H8: 13.2 | I8: 13.1 | J8: 13 | K8: 12.9 | L8: 12.8 | M8: 12.3 | N8: 12 | O8: 11.9 | P8: 11.8
A9: 1.5 | B9: 18 | C9: 12.8 | D9: 13.2 | E9: 13.4 | F9: 13.4 | G9: 13.4 | H9: 13.3 | I9: 13.2 | J9: 13.1 | K9: 13 | L9: 12.9 | M9: 12.4 | N9: 12.1 | O9: 12 | P9: 11.8
A10: 2 | B10: 24 | C10: 13 | D10: 13.3 | E10: 13.4 | F10: 13.5 | G10: 13.5 | H10: 13.4 | I10: 13.2 | J10: 13.1 | K10: 13 | L10: 12.9 | M10: 12.4 | N10: 12.1 | O10: 12 | P10: 11.8
A11: 3 | B11: 36 | C11: 13.4 | D11: 13.5 | E11: 13.5 | F11: 13.5 | G11: 13.4 | H11: 13.3 | I11: 13.2 | J11: 13.1 | K11: 12.9 | L11: 12.8 | M11: 12.4 | N11: 12.1 | O11: 11.9 | P11: 11.8
A12: 4 | B12: 48 | C12: 13.6 | D12: 13.6 | E12: 13.5 | F12: 13.4 | G12: 13.3 | H12: 13.1 | I12: 13 | J12: 12.9 | K12: 12.8 | L12: 12.7 | M12: 12.3 | N12: 12 | O12: 11.8 | P12: 11.7
A13: 5 | B13: 60 | C13: 13.6 | D13: 13.4 | E13: 13.3 | F13: 13.2 | G13: 13.1 | H13: 12.9 | I13: 12.8 | J13: 12.7 | K13: 12.6 | L13: 12.5 | M13: 12.1 | N13: 11.8 | O13: 11.6 | P13: 11.5
A14: 7 | B14: 84 | C14: 13.1 | D14: 13 | E14: 12.8 | F14: 12.6 | G14: 12.5 | H14: 12.4 | I14: 12.3 | J14: 12.2 | K14: 12.1 | L14: 12 | M14: 11.6 | N14: 11.2 | O14: 11.1 | P14: 11
A15: 10 | B15: 120 | C15: 12.4 | D15: 12.1 | E15: 11.9 | F15: 11.8 | G15: 11.7 | H15: 11.6 | I15: 11.6 | J15: 11.5 | K15: 11.4 | L15: 11.4 | M15: 11.1 | N15: 10.7 | O15: 10.5 | P15: 10.4
A16: 15 | B16: 180 | C16: 11.2 | D16: 11.1 | E16: 10.9 | F16: 10.9 | G16: 10.9 | H16: 10.9 | I16: 10.9 | J16: 10.8 | K16: 10.8 | L16: 10.7 | M16: 10.4 | N16: 10.1 | O16: 9.9 | P16: 9.7
A17: 20 | B17: 240 | C17: 10.9 | D17: 10.7 | E17: 10.6 | F17: 10.6 | G17: 10.6 | H17: 10.6 | I17: 10.6 | J17: 10.6 | K17: 10.6 | L17: 10.6 | M17: 10.1 | N17: 9.7 | O17: 9.5 | P17: 9.4
A18: 25 | B18: 300 | C18: 10.4 | D18: 10.5 | E18: 10.4 | F18: 10.4 | G18: 10.4 | H18: 10.4 | I18: 10.4 | J18: 10.4 | K18: 10.4 | L18: 10.3 | M18: 9.8 | N18: 9.5 | O18: 9.4 | P18: 9.3
A19: 30 | B19: 360 | C19: 10.3 | D19: 10.3 | E19: 10.1 | F19: 10.1 | G19: 10.1 | H19: 10.1 | I19: 10.1 | J19: 10.1 | K19: 10.1 | L19: 10.1 | M19: 9.7 | N19: 9.6 | O19: 9.5 | P19: 9.4
A21: a
A22: years | C22: 2 | D22: 5 | E22: 10 | F22: 20 | G22: 30
B23: months | C23: =C22*12 -> 24 | D23: =D22*12 -> 60 | E23: =E22*12 -> 120 | F23: =F22*12 -> 240 | G23: =G22*12 -> 360
A24: 0.5 | B24: =A24*12 -> 6 | C24: 0.02164014703 | D24: 0.02531649998 | E24: 0.02467682699 | F24: 0.02382165078 | G24: 0.0234076141
A25: 1 | B25: =A25*12 -> 12 | C25: 0.0259439909 | D25: 0.02707913048 | E25: 0.02651620874 | F25: 0.02515860199 | G25: 0.02467159124
A26: 5 | B26: =A26*12 -> 60 | C26: 0.0271596158 | D26: 0.02677935239 | E26: 0.0653 | F26: 0.02413193205 | G26: 0.02335847341
A27: 20 | B27: 12 | C27: 0.02044595335 | D27: 0.02088802212 | E27: 0.01982897776 | F27: 0.01754287376 | G27: 0.01633097771
A28: 30 | B28: =A28*12 -> 360 | C28: 0.01937401671 | D28: 0.01942002834 | E28: 0.01748390669 | F28: 0.01595767467 | G28: 0.01529375941
A39: b
A40: years | C40: 2 | D40: 5 | E40: 10 | F40: 20 | G40: 30
B41: months | C41: =C40*12 -> 24 | D41: =D40*12 -> 60 | E41: =E40*12 -> 120 | F41: =F40*12 -> 240 | G41: =G40*12 -> 360
A42: 0.5 | B42: =A42*12 -> 6 | C42: 0.5 | D42: 0.5 | E42: 0.5 | F42: 0.5 | G42: 0.5
A43: 1 | B43: =A43*12 -> 12 | C43: 0.5 | D43: 0.5 | E43: 0.5 | F43: 0.5 | G43: 0.5
A44: 5 | B44: =A44*12 -> 60 | C44: 0.5 | D44: 0.5 | E44: 0.75 | F44: 0.5 | G44: 0.5
A45: 20 | B45: =A45*12 -> 240 | C45: 0.5 | D45: 0.5 | E45: 0.5 | F45: 0.5 | G45: 0.5
A46: 30 | B46: =A46*12 -> 360 | C46: 0.5 | D46: 0.5 | E46: 0.5 | F46: 0.5 | G46: 0.5
A57: r
A58: years | C58: 2 | D58: 5 | E58: 10 | F58: 20 | G58: 30
B59: months | C59: =C58*12 -> 24 | D59: =D58*12 -> 60 | E59: =E58*12 -> 120 | F59: =F58*12 -> 240 | G59: =G58*12 -> 360
A60: 0.5 | B60: =A60*12 -> 6 | C60: -0.1470335913 | D60: -0.05982439601 | E60: -0.03281961477 | F60: -0.1128073343 | G60: -0.09619289429
A61: 1 | B61: =A61*12 -> 12 | C61: 0.03981133524 | D61: -0.06927137155 | E61: -0.06057020032 | F61: -0.1141508448 | G61: -0.1434996108
A62: 5 | B62: =A62*12 -> 60 | C62: 0.0147955636 | D62: -0.1003271903 | E62: 0.694 | F62: -0.1675172087 | G62: -0.1410206487
A63: 20 | B63: =A63*12 -> 240 | C63: -0.2196334701 | D63: -0.08059008369 | E63: -0.1476900344 | F63: -0.1295546054 | G63: -0.09874767389
A64: 30 | B64: =A64*12 -> 360 | C64: -0.07616251798 | D64: -0.1884435831 | E64: -0.1123224511 | F64: -0.09028498544 | G64: -0.08099646755
A75: n
A76: years | C76: 2 | D76: 5 | E76: 10 | F76: 20 | G76: 30
B77: months | C77: =C76*12 -> 24 | D77: =D76*12 -> 60 | E77: =E76*12 -> 120 | F77: =F76*12 -> 240 | G77: =G76*12 -> 360
A78: 0.5 | B78: =A78*12 -> 6 | C78: 0.06541235292 | D78: 0.2184809514 | E78: 0.3951223131 | F78: 0.2785951691 | G78: 0.312270174
A79: 1 | B79: =A79*12 -> 12 | C79: 0.277285812 | D79: 0.2692141992 | E79: 0.3706242865 | F79: 0.3500243669 | G79: 0.3658881612
A80: 5 | B80: =A80*12 -> 60 | C80: 0.2670844434 | D80: 0.2876782492 | E80: 0.717 | F80: 0.3150892963 | G80: 0.3441956879
A81: 20 | B81: =A81*12 -> 240 | C81: 0.2834244919 | D81: 0.2078261623 | E81: 0.278443155 | F81: 0.3017188438 | G81: 0.3322790187
A82: 30 | B82: =A82*12 -> 360 | C82: 0.1934808802 | D82: 0.1748736216 | E82: 0.2681916142 | F82: 0.2912760862 | G82: 0.3098692037
